Body Name,Body,Service Division Label,Service Division Code,Organisational Unit,Expenditure Category,Expenditure Code,CIPFA detailed expediture type,CIPFA detailed expediture code,Narrative,Date,Transaction number,Net Amount,Capital and Revenue,Supplier Name,Supplier ID,,
Chorley Borough Council,http://statistics.data.gov.uk/id/local-authority/30UE,Democratic Represent and  Mgnt,1007,Early Intervention,External Contractor - Trust or Charity,50008,Private Contractors,5042,ADDING VALUE WRITTEN OFF IN ERROR,07/09/2018,0132155,"33,911.84",Revenue,Active Nation UK Ltd,17144,,
Chorley Borough Council,http://statistics.data.gov.uk/id/local-authority/30UE,Service Management & Support,1009,Customer & Digital,Vehicles and Plant Maintenance,30045,Direct Transport Costs,5016,to carry out engine repairs to AE14AXX as per you quotation 20157759/ 02.07.2018,19/09/2018,0132513,"4,957.23",Revenue,Aebi Schmidt UK Ltd,17287,,
Chorley Borough Council,http://statistics.data.gov.uk/id/local-authority/30UE,Service Management & Support,1009,Customer & Digital,Vehicles and Plant Maintenance,30045,Direct Transport Costs,5016,carry out repairs to fan motor on AE14AXW as per invoice 2650239/23.07.2018,26/09/2018,0132562,960.08,Revenue,Aebi Schmidt UK Ltd,17287,,
Chorley Borough Council,http://statistics.data.gov.uk/id/local-authority/30UE,Service Management & Support,1009,Customer & Digital,Vehicles and Plant Maintenance,30045,Direct Transport Costs,5016,1 x Pump and motor (12-97600554) @824.93,26/09/2018,0132633,824.93,Revenue,Aebi Schmidt UK Ltd,17287,,
Chorley Borough Council,http://statistics.data.gov.uk/id/local-authority/30UE,Service Management & Support,1009,Customer & Digital,Vehicles and Plant Maintenance,30045,Direct Transport Costs,5016,1 x  guaranteed next day delivery @25.00,26/09/2018,0132633,25.00,Revenue,Aebi Schmidt UK Ltd,17287,,
Chorley Borough Council,http://statistics.data.gov.uk/id/local-authority/30UE,Capital,Capital,Business Development & Growth,Architects Fees,03022,Capital Expenditure,Capital,Tenant liaison service from April 2018 to September 2019,28/09/2018,0132662,"5,062.50",Capital,AEW Architects & Designers Ltd,66520,,
Chorley Borough Council,http://statistics.data.gov.uk/id/local-authority/30UE,Unapportionable Central OHeads,1009,Customer & Digital,Bank Charges,40151,Miscellaneous Expenses,5034,charges,05/09/2018,0132165,"1,579.50",Revenue,Allpay Net Ltd,17242,,
Chorley Borough Council,http://statistics.data.gov.uk/id/local-authority/30UE,Democratic Represent and  Mgnt,1007,Business Development & Growth,Rent/Hire Of Premises,20017,Premises Rents,5007,Rent for Period October to December 2018,19/09/2018,0132329,"10,625.00",Revenue,Alston Properties Ltd,77241,,
Chorley Borough Council,http://statistics.data.gov.uk/id/local-authority/30UE,Development Control,1091,Customer & Digital,Consultants` Fees,40077,Services,5027,Work undertaken in respect of Botany Bay,07/09/2018,0131834,"4,370.00",Revenue,Alyn Nicholls,76491,,
Chorley Borough Council,http://statistics.data.gov.uk/id/local-authority/30UE,Capital,Capital,Business Development & Growth,Other Expenses,03030,Capital Expenditure,Capital,"0000012303, please supply the following: 1500mm length Self Watering Promenade (Light Sandstone, no logo, no crest)",12/09/2018,0132132,"7,548.60",Capital,Amberol,64554,,
Chorley Borough Council,http://statistics.data.gov.uk/id/local-authority/30UE,Economic Development,1096,Business Development & Growth,Cleaning Materials,40019,"Equipment, Furniture & Materia",5023,Please supply Janitorial supplies as per e-mail,26/09/2018,0132587,288.35,Revenue,Amtoll Ltd (Part of Pattersons Holdings (Bristol),77537,,
Chorley Borough Council,http://statistics.data.gov.uk/id/local-authority/30UE,Tourism,1039,Policy & Governance,Miscellaneous Expenses,40200,Miscellaneous Expenses,5034,Caf� society performance for Flower Show 2018.,05/09/2018,0132182,"1,500.00",Revenue,Anthony Mason,65367,,
Chorley Borough Council,http://statistics.data.gov.uk/id/local-authority/30UE,Homelessness,1075,Early Intervention,Tools & Equipment - Purchase,40003,"Equipment, Furniture & Materia",5023,803/2317  Pro Action 200mgs sleeping bag,05/09/2018,0130635,41.60,Revenue,Argos Business Solutions,16213,,
Chorley Borough Council,http://statistics.data.gov.uk/id/local-authority/30UE,Homelessness,1075,Early Intervention,Tools & Equipment - Purchase,40003,"Equipment, Furniture & Materia",5023,187/8932  Einhell BG PL261 Cordless Leafblower and Vac 650w,05/09/2018,0130635,120.83,Revenue,Argos Business Solutions,16213,,
Chorley Borough Council,http://statistics.data.gov.uk/id/local-authority/30UE,Homelessness,1075,Early Intervention,Tools & Equipment - Purchase,40003,"Equipment, Furniture & Materia",5023,548/8555  Microwave/combination oven Sharp 900w Combination R861 Silver,05/09/2018,0130635,108.33,Revenue,Argos Business Solutions,16213,,
Chorley Borough Council,http://statistics.data.gov.uk/id/local-authority/30UE,Central Support Services,1009,Policy & Governance,Car Leasing Payment,14100,Direct Employee Expenses,5001,NAME REDACTED,05/09/2018,0132162,262.61,Revenue,Arnold Clark Finance Ltd,20685,,
Chorley Borough Council,http://statistics.data.gov.uk/id/local-authority/30UE,Central Support Services,1009,Policy & Governance,Car Leasing Payment,14100,Direct Employee Expenses,5001,Car Lease,05/09/2018,0132162,22.58,Revenue,Arnold Clark Finance Ltd,20685,,
Chorley Borough Council,http://statistics.data.gov.uk/id/local-authority/30UE,Unapportionable Central OHeads,1009,Policy & Governance,Car Leasing Payment,14100,Direct Employee Expenses,5001,NAME REDACTED,05/09/2018,0132162,178.51,Revenue,Arnold Clark Finance Ltd,20685,,
Chorley Borough Council,http://statistics.data.gov.uk/id/local-authority/30UE,Unapportionable Central OHeads,1009,Policy & Governance,Car Leasing Payment,14100,Direct Employee Expenses,5001,Car Lease,05/09/2018,0132162,13.96,Revenue,Arnold Clark Finance Ltd,20685,,
Chorley Borough Council,http://statistics.data.gov.uk/id/local-authority/30UE,Corporate Management,1008,Policy & Governance,Exhibitions & Special Events,40158,Miscellaneous Expenses,5034,Summer Activities on Market Walk,05/09/2018,0132112,"1,166.67",Revenue,ARTventurers Preston Chorley and Leyland,76837,,
Chorley Borough Council,http://statistics.data.gov.uk/id/local-authority/30UE,Central Support Services,1009,Early Intervention,Miscellaneous Expenses,40200,Miscellaneous Expenses,5034,neighbourhood working,26/09/2018,0132598,"2,000.00",Revenue,Astley Village Parish Council,17642,,
Chorley Borough Council,http://statistics.data.gov.uk/id/local-authority/30UE,Service Management & Support,1009,Customer & Digital,Vehicles and Plant Maintenance,30045,Direct Transport Costs,5016,as per quotation Q13164; JD-TCA21758 Bevel Gear Drive,12/09/2018,0132258,812.67,Revenue,Balmers Garden Machinery,17075,,
Chorley Borough Council,http://statistics.data.gov.uk/id/local-authority/30UE,Service Management & Support,1009,Customer & Digital,Vehicles and Plant Maintenance,30045,Direct Transport Costs,5016,JD-14M7276 Nut,12/09/2018,0132258,1.27,Revenue,Balmers Garden Machinery,17075,,
Chorley Borough Council,http://statistics.data.gov.uk/id/local-authority/30UE,Service Management & Support,1009,Customer & Digital,Vehicles and Plant Maintenance,30045,Direct Transport Costs,5016,JD-TCU2993 Chain Link,12/09/2018,0132258,19.92,Revenue,Balmers Garden Machinery,17075,,
Chorley Borough Council,http://statistics.data.gov.uk/id/local-authority/30UE,Service Management & Support,1009,Customer & Digital,Vehicles and Plant Maintenance,30045,Direct Transport Costs,5016,JD M96100 Lift Link,12/09/2018,0132258,15.26,Revenue,Balmers Garden Machinery,17075,,
Chorley Borough Council,http://statistics.data.gov.uk/id/local-authority/30UE,Service Management & Support,1009,Customer & Digital,Vehicles and Plant Maintenance,30045,Direct Transport Costs,5016,2 x JD-TCU14356 V-Belt,12/09/2018,0132258,123.42,Revenue,Balmers Garden Machinery,17075,,
Chorley Borough Council,http://statistics.data.gov.uk/id/local-authority/30UE,Service Management & Support,1009,Customer & Digital,Vehicles and Plant Maintenance,30045,Direct Transport Costs,5016,JD-L77747 Knob JD-L171481 Insert JD-M111717 Push Nut,12/09/2018,0132258,4.53,Revenue,Balmers Garden Machinery,17075,,
Chorley Borough Council,http://statistics.data.gov.uk/id/local-authority/30UE,Service Management & Support,1009,Customer & Digital,Vehicles and Plant Maintenance,30045,Direct Transport Costs,5016,part number TCA 15196 - universal driveshaft,12/09/2018,0132259,464.99,Revenue,Balmers Garden Machinery,17075,,
Chorley Borough Council,http://statistics.data.gov.uk/id/local-authority/30UE,Service Management & Support,1009,Customer & Digital,Vehicles and Plant Maintenance,30045,Direct Transport Costs,5016,for John Deere 62`` rear discharge front deck for PO12 OML - complete spindle with housing and pulley. To be collected 09/08/18,28/09/2018,0132674,294.21,Revenue,Balmers Garden Machinery,17075,,
Chorley Borough Council,http://statistics.data.gov.uk/id/local-authority/30UE,Unapportionable Central OHeads,1009,Business Development & Growth,General Repairs - Reactive,20004,Repairs Maintenance & Alts,5005,Replace carpets at Cotswold House in Flat 5 and 7,19/09/2018,0132050,750.00,Revenue,Branagan Flooring Services Ltd,77228,,
Chorley Borough Council,http://statistics.data.gov.uk/id/local-authority/30UE,Homelessness,1075,Business Development & Growth,General Repairs - Reactive,20004,Repairs Maintenance & Alts,5005,"ADDRESS REDACTED - Lift carpets, fir underlay and relay carpets in 3 bedrooms and the hallway",19/09/2018,0132051,325.00,Revenue,Branagan Flooring Services Ltd,77228,,
Chorley Borough Council,http://statistics.data.gov.uk/id/local-authority/30UE,Corporate Management,1008,Policy & Governance,Exhibitions & Special Events,40158,Miscellaneous Expenses,5034,Market Walk Summer Activity,05/09/2018,0131847,720.00,Revenue,Brian Gore,18370,,
Chorley Borough Council,http://statistics.data.gov.uk/id/local-authority/30UE,Tourism,1039,Policy & Governance,Professional Fees,40063,Services,5027,flower show prize money,19/09/2018,0132432,400.00,Revenue,NAME REDACTED,71496,,
Chorley Borough Council,http://statistics.data.gov.uk/id/local-authority/30UE,Central Support Services,1009,Customer & Digital,Publicity - Advertising,40157,Miscellaneous Expenses,5034,B.T Preston and Central Lancs Councils 18/19 1/4 column 408.97 Preston and Central Lancs Business 18/19 1/3 page 979.21,21/09/2018,0132544,"1,388.18",Revenue,British Telecommunications,18431,,
Chorley Borough Council,http://statistics.data.gov.uk/id/local-authority/30UE,Central Support Services,1009,Early Intervention,Telephones - Rentals,40083,Communication and Computing,5028,22/6/18 to 20/6/19,05/09/2018,0130334,"3,204.68",Revenue,BT Redcare,21115,,
Chorley Borough Council,http://statistics.data.gov.uk/id/local-authority/30UE,Service Management & Support,1009,Customer & Digital,Supplies-Grounds Maintenance,40025,"Equipment, Furniture & Materia",5023,"Emptying of interceptor tanks and clearing/jetting drains at Bengal St Depot, to comply with EA Licence conditions, at the agreed cost of ",28/09/2018,0132092,325.00,Revenue,C J Lyon,16579,,
Chorley Borough Council,http://statistics.data.gov.uk/id/local-authority/30UE,Tourism,1039,Policy & Governance,Refreshments,40036,Catering,5024,Friday Gala Dinner Judges Lunches,07/09/2018,0131760,"2,361.71",Revenue,Cafe Ambio,22328,,
Chorley Borough Council,http://statistics.data.gov.uk/id/local-authority/30UE,Unapportionable Central OHeads,1009,Customer & Digital,Emergency Call Out System,40096,Communication and Computing,5028,Out of hours call charges August 2018,12/09/2018,0132191,443.52,Revenue,CallCare Ltd,20257,,
Chorley Borough Council,http://statistics.data.gov.uk/id/local-authority/30UE,Unapportionable Central OHeads,1009,Customer & Digital,Emergency Call Out System,40096,Communication and Computing,5028,Out of hours standing charge October 2018,12/09/2018,0132191,120.00,Revenue,CallCare Ltd,20257,,
Chorley Borough Council,http://statistics.data.gov.uk/id/local-authority/30UE,Central Support Services,1009,Customer & Digital,Miscellaneous Expenses,40200,Miscellaneous Expenses,5034,Contract No. GB-505918-OKS 1707.51 Contract No. GB-506449-OKS  �  100.55,26/09/2018,0132350,"1,808.06",Revenue,Canon (UK) Ltd,17492,,
Chorley Borough Council,http://statistics.data.gov.uk/id/local-authority/30UE,Corporate Management,1008,Customer & Digital,Other Contributions,40145,Grants and Subscriptions,5031,PLRG,26/09/2018,0132600,"2,887.00",Revenue,NAME REDACTED,73787,,
Chorley Borough Council,http://statistics.data.gov.uk/id/local-authority/30UE,Building Control,1090,Customer & Digital,Professional Fees,40063,Services,5027,Building Control Structural Calculations,19/09/2018,0132426,260.00,Revenue,Carr Faulkner Associates,17493,,
Chorley Borough Council,http://statistics.data.gov.uk/id/local-authority/30UE,Tourism,1039,Policy & Governance,Supplies-Grounds Maintenance,40025,"Equipment, Furniture & Materia",5023,Flower show - fuel used for the generators,07/09/2018,0132052,514.80,Revenue,Charles Wilson Engineers Ltd,77458,,
Chorley Borough Council,http://statistics.data.gov.uk/id/local-authority/30UE,Tourism,1039,Policy & Governance,Miscellaneous Expenses,40200,Miscellaneous Expenses,5034,prize money for amateur section,05/09/2018,0132034,545.00,Revenue,Chorley & District Gardening Society,21287,,
Chorley Borough Council,http://statistics.data.gov.uk/id/local-authority/30UE,Corporate Management,1008,Early Intervention,Taxi Testing & Vehicle Safety Report,40234,Services,5027,taxi MOTR,26/09/2018,0132404,"1,919.75",Revenue,Chorley Autocare Ltd,17110,,
Chorley Borough Council,http://statistics.data.gov.uk/id/local-authority/30UE,Corporate Management,1008,Early Intervention,Taxi Testing & Vehicle Safety Report,40234,Services,5027,taxi testing,26/09/2018,0132404,299.25,Revenue,Chorley Autocare Ltd,17110,,
Chorley Borough Council,http://statistics.data.gov.uk/id/local-authority/30UE,Central Support Services,1009,Early Intervention,Play Events,40181,Miscellaneous Expenses,5034,"Inflatables for Summer Playday 1st Aug 2018 Coronation Park  Adult Bouncy Castle	 1x	 100  Generator	 1x	 50  Event Staff Hours	",21/09/2018,0132527,485.00,Revenue,Chorley Bouncy Castles,55301,,
Chorley Borough Council,http://statistics.data.gov.uk/id/local-authority/30UE,Service Management & Support,1009,Customer & Digital,Vehicles and Plant Maintenance,30045,Direct Transport Costs,5016,"1x 6PR alliance 322TU, 1x commercial puncture, dated 03/09/2018, ref 24381, on vehicle PO14 BFX",07/09/2018,0132183,514.00,Revenue,Chorley Tyres,53719,,
Chorley Borough Council,http://statistics.data.gov.uk/id/local-authority/30UE,Tourism,1039,Policy & Governance,Professional Fees,40063,Services,5027,flower show prize money,19/09/2018,0132433,400.00,Revenue,Chrysanthemums Direct,76213,,
Chorley Borough Council,http://statistics.data.gov.uk/id/local-authority/30UE,Unapportionable Central OHeads,1009,Business Development & Growth,Planned Maintenance,20006,Repairs Maintenance & Alts,5005,Blanket order for PPM works,12/09/2018,0132053,"1,588.18",Revenue,Chubb Electronic Sec Sys Ltd,16228,,
Chorley Borough Council,http://statistics.data.gov.uk/id/local-authority/30UE,Economic Development,1096,Business Development & Growth,Fixtures & Fittings - Repair/Mtnce,20028,Fixtures and Fittings,5010,Please supply  12 x Corner Leg`s for our Gazebo`s 25.00 each 6 x Centre prongs (4 Joint) Free of charge,21/09/2018,0132435,300.00,Revenue,City B Group Ltd,47300,,
Chorley Borough Council,http://statistics.data.gov.uk/id/local-authority/30UE,Unapportionable Central OHeads,1009,Policy & Governance,IT Software - Annual Licences,40101,Communication and Computing,5028,Kofax eMail upgrade annual licence support and maintenance 01/11/18 to 31/10/19,21/09/2018,0132563,"1,124.55",Revenue,Civica UK Limited,17463,,
Chorley Borough Council,http://statistics.data.gov.uk/id/local-authority/30UE,Homelessness,1075,Early Intervention,Computer Software-Maintenance,40107,Communication and Computing,5028,Additional charge to Chorley for exceeding Data Storage and Recovery Quote - overage is billable at 6.00 per File size (GB) ,26/09/2018,0132564,278.46,Revenue,Civica UK Limited,17463,,
Chorley Borough Council,http://statistics.data.gov.uk/id/local-authority/30UE,Homelessness,1075,Early Intervention,IT Software - Annual Licences,40101,Communication and Computing,5028,"LICENCE, SUPPORT AND MAINTENANCE  FOR THE PERIOD: 01/10/2018 TO 30/09/2019 Hosting Fee (Unit Price 903.04) ",26/09/2018,0132665,"9,571.37",Revenue,Civica UK Limited,17463,,
Chorley Borough Council,http://statistics.data.gov.uk/id/local-authority/30UE,Business Support,1095,Business Development & Growth,Grants To Other Organisations,40127,Grants and Subscriptions,5031,GRANT,19/09/2018,0132403,250.00,Revenue,NAME REDACTED,77552,,
Chorley Borough Council,http://statistics.data.gov.uk/id/local-authority/30UE,Unapportionable Central OHeads,1009,Business Development & Growth,General Repairs - Reactive,20004,Repairs Maintenance & Alts,5005,Chorley Football Club - electrical works following leak,26/09/2018,0132369,"1,074.51",Revenue,Corlett Electrical Eng Co Ltd,16271,,
Chorley Borough Council,http://statistics.data.gov.uk/id/local-authority/30UE,Central Support Services,1009,Early Intervention,Miscellaneous Expenses,40200,Miscellaneous Expenses,5034,Installation and mounting of  TV units at Clayton Brook Village Hall and Tatton Community Centre. 2 x 396.00 ,21/09/2018,0132436,792.00,Revenue,Corlett Electrical Eng Co Ltd,16271,,
Chorley Borough Council,http://statistics.data.gov.uk/id/local-authority/30UE,Tourism,1039,Policy & Governance,Supplies-Grounds Maintenance,40025,"Equipment, Furniture & Materia",5023,electrical set up and connection for the flower show,28/09/2018,0132695,"1,824.00",Revenue,Corlett Electrical Eng Co Ltd,16271,,
Chorley Borough Council,http://statistics.data.gov.uk/id/local-authority/30UE,Homelessness,1075,Business Development & Growth,Gas,20014,Energy Costs,5006,Aug18 to Sept18,26/09/2018,0132610,328.00,Revenue,Corona Energy Retail 2 Ltd,67249,,
Chorley Borough Council,http://statistics.data.gov.uk/id/local-authority/30UE,Democratic Represent and  Mgnt,1007,Business Development & Growth,Gas,20014,Energy Costs,5006,Aug18 to Sept18,26/09/2018,0132616,276.38,Revenue,Corona Energy Retail 2 Ltd,67249,,
Chorley Borough Council,http://statistics.data.gov.uk/id/local-authority/30UE,Unapportionable Central OHeads,1009,Business Development & Growth,Gas,20014,Energy Costs,5006,,26/09/2018,0132619,542.40,Revenue,Corona Energy Retail 2 Ltd,67249,,
Chorley Borough Council,http://statistics.data.gov.uk/id/local-authority/30UE,Unapportionable Central OHeads,1009,Business Development & Growth,Gas,20014,Energy Costs,5006,Aug18 to Sept18,26/09/2018,0132620,313.78,Revenue,Corona Energy Retail 2 Ltd,67249,,
Chorley Borough Council,http://statistics.data.gov.uk/id/local-authority/30UE,Recreation & Sport,1037,Business Development & Growth,Gas,20014,Energy Costs,5006,Aug18 to Sept18,26/09/2018,0132621,296.85,Revenue,Corona Energy Retail 2 Ltd,67249,,
Chorley Borough Council,http://statistics.data.gov.uk/id/local-authority/30UE,Tourism,1039,Policy & Governance,Professional Fees,40063,Services,5027,Frooj and Fred walkabout act for Flower Show,12/09/2018,0132334,"1,500.00",Revenue,Curious Creations Events Ltd,77364,,
Chorley Borough Council,http://statistics.data.gov.uk/id/local-authority/30UE,Central Support Services,1009,Business Development & Growth,Consultants` Fees,40077,Services,5027,sub-consultant through HIVE for Alker Lane works - flood risk/drainage - highways and transport,05/09/2018,0131373,"6,200.00",Revenue,Curtins Consulting Engineers,20049,,
Chorley Borough Council,http://statistics.data.gov.uk/id/local-authority/30UE,Business Support,1095,Business Development & Growth,Miscellaneous Expenses,40200,Miscellaneous Expenses,5034,Professional Design Fees - Digital Office Hub project,26/09/2018,0132608,"2,800.00",Revenue,Curtins Consulting Engineers,20049,,
Chorley Borough Council,http://statistics.data.gov.uk/id/local-authority/30UE,Service Management & Support,1009,Customer & Digital,Supplies-Grounds Maintenance,40025,"Equipment, Furniture & Materia",5023,1 x Balmoral Bench 1.8m KD with stainless steel plaque 6``x2``,26/09/2018,0132519,350.62,Revenue,Cyan t/a Lindsey,61782,,
Chorley Borough Council,http://statistics.data.gov.uk/id/local-authority/30UE,Central Support Services,1009,Customer & Digital,Computer Equipment-Purchase,40098,Communication and Computing,5028,Apple lighting USB 1M Cable + UK Plug,12/09/2018,0132142,959.50,Revenue,DAC Technology Ltd,76398,,
Chorley Borough Council,http://statistics.data.gov.uk/id/local-authority/30UE,Central Support Services,1009,Customer & Digital,Computer Equipment-Purchase,40098,Communication and Computing,5028,4x Apple iPhone 6 64GB Grey,12/09/2018,0132267,848.00,Revenue,DAC Technology Ltd,76398,,
Chorley Borough Council,http://statistics.data.gov.uk/id/local-authority/30UE,Unapportionable Central OHeads,1009,Policy & Governance,HR Approved Training Expenses,17001,Indirect Employee Expenses,5002,Investigations Training 12 September 2018,26/09/2018,0132635,"2,000.00",Revenue,Darren Newman Employment Law Ltd,77434,,
Chorley Borough Council,http://statistics.data.gov.uk/id/local-authority/30UE,Tourism,1039,Policy & Governance,Professional Fees,40063,Services,5027,flower show prize money,19/09/2018,0132438,650.00,Revenue,NAME REDACTED,71497,,
Chorley Borough Council,http://statistics.data.gov.uk/id/local-authority/30UE,Democratic Represent and  Mgnt,1007,Customer & Digital,Supplies-Grounds Maintenance,40025,"Equipment, Furniture & Materia",5023,2 Parent & Child willow sculptures 1 Gardener willow sculpture,05/09/2018,0131948,"1,925.00",Revenue,Eco-Arts,21984,,
Chorley Borough Council,http://statistics.data.gov.uk/id/local-authority/30UE,Central Support Services,1009,Customer & Digital,Mobile Voice and Data,40086,Communication and Computing,5028,03-Sep-18,19/09/2018,0132366,"1,402.26",Revenue,EE - Orange,16486,,
Chorley Borough Council,http://statistics.data.gov.uk/id/local-authority/30UE,Central Support Services,1009,Customer & Digital,Mobile Voice and Data,40086,Communication and Computing,5028,non vat charges,19/09/2018,0132366,0.12,Revenue,EE - Orange,16486,,
Chorley Borough Council,http://statistics.data.gov.uk/id/local-authority/30UE,Central Support Services,1009,Customer & Digital,Mobile Voice and Data,40086,Communication and Computing,5028,charges 03 aug 2018,19/09/2018,0132379,390.74,Revenue,EE - Orange,16486,,
Chorley Borough Council,http://statistics.data.gov.uk/id/local-authority/30UE,Central Support Services,1009,Customer & Digital,Mobile Voice and Data,40086,Communication and Computing,5028,02/07/2018,07/09/2018,0130864,"1,860.40",Revenue,EE LIMITED,63366,,
Chorley Borough Council,http://statistics.data.gov.uk/id/local-authority/30UE,Central Support Services,1009,Customer & Digital,Mobile Voice and Data,40086,Communication and Computing,5028,Aug-18,07/09/2018,0131723,"1,623.09",Revenue,EE LIMITED,63366,,
Chorley Borough Council,http://statistics.data.gov.uk/id/local-authority/30UE,Central Support Services,1009,Customer & Digital,Mobile Voice and Data,40086,Communication and Computing,5028,,07/09/2018,0131723,193.92,Revenue,EE LIMITED,63366,,
Chorley Borough Council,http://statistics.data.gov.uk/id/local-authority/30UE,Central Support Services,1009,Customer & Digital,Mobile Voice and Data,40086,Communication and Computing,5028,Third party services,07/09/2018,0132256,"1,676.25",Revenue,EE LIMITED,63366,,
Chorley Borough Council,http://statistics.data.gov.uk/id/local-authority/30UE,Unapportionable Central OHeads,1009,Business Development & Growth,General Repairs - Reactive,20004,Repairs Maintenance & Alts,5005,Reactive works as of Feb 2018,12/09/2018,0132001,522.79,Revenue,Ellesmere Engineering Co Ltd,17520,,
Chorley Borough Council,http://statistics.data.gov.uk/id/local-authority/30UE,Unapportionable Central OHeads,1009,Customer & Digital,Depot Licences,40236,Miscellaneous Expenses,5034,FY 2018 /.2019 Payment for permit ref No SP3697CC/A001 for Bengal St Depot PR7 1SA as on invoice number N00000404T,05/09/2018,0131960,"1,295.00",Revenue,Environment Agency,18256,,
Chorley Borough Council,http://statistics.data.gov.uk/id/local-authority/30UE,Service Management & Support,1009,Customer & Digital,Training Course Fees,17010,Indirect Employee Expenses,5002,first assessment/ visit by NAME REDACTED for WAMITAB course,05/09/2018,0131883,354.48,Revenue,Environmental Leadership Ltd,77245,,
Chorley Borough Council,http://statistics.data.gov.uk/id/local-authority/30UE,Capital,Capital,Business Development & Growth,Main Contractor,03007,Capital Expenditure,Capital,Additional costs (increase order to 592k as per email 03.08.18),19/09/2018,0131778,"113,856.31",Capital,Eric Wright Construction Ltd,76464,,
Chorley Borough Council,http://statistics.data.gov.uk/id/local-authority/30UE,Capital,Capital,Business Development & Growth,Main Contractor,03007,Capital Expenditure,Capital,Oak House Demolition costs,26/09/2018,0132602,"173,302.14",Capital,Eric Wright Construction Ltd,76464,,
Chorley Borough Council,http://statistics.data.gov.uk/id/local-authority/30UE,Parking Services,1066,Customer & Digital,Supplies-Grounds Maintenance,40025,"Equipment, Furniture & Materia",5023,20 Phormiums `New Zealand Flax` 10 litre 10 Conifer Spirals - 1.2m 20 Buxus Balls - 30cm 90 Heucheras `Alumroot` - 5 litre 140 ,26/09/2018,0132574,"3,428.00",Revenue,Everglades Nurseries Ltd,20202,,
Chorley Borough Council,http://statistics.data.gov.uk/id/local-authority/30UE,Service Management & Support,1009,Customer & Digital,Supplies - Workshop,40246,"Equipment, Furniture & Materia",5023,15 x washer,05/09/2018,0131848,27.03,Revenue,F R Sharrock Ltd,18091,,
Chorley Borough Council,http://statistics.data.gov.uk/id/local-authority/30UE,Service Management & Support,1009,Customer & Digital,Supplies - Workshop,40246,"Equipment, Furniture & Materia",5023,30 x screw-CSK 3/8-16 2 x End female rod 18 x bolt 10 x washer 10 x washer 10 x washer 4 x cup spring 4 x drive control cable,05/09/2018,0131848,626.42,Revenue,F R Sharrock Ltd,18091,,
Chorley Borough Council,http://statistics.data.gov.uk/id/local-authority/30UE,Service Management & Support,1009,Customer & Digital,Vehicles and Plant Maintenance,30045,Direct Transport Costs,5016,as per pro forma 131464; Various parts for the workshop for ride on mower repairs & maintenance,05/09/2018,0132138,717.22,Revenue,F R Sharrock Ltd,18091,,
Chorley Borough Council,http://statistics.data.gov.uk/id/local-authority/30UE,Service Management & Support,1009,Customer & Digital,Vehicles and Plant Maintenance,30045,Direct Transport Costs,5016,"As per quote Q19212;  4 x WX-6530 SCRAPER,WIRE [WING] @ 100 (total) 2 x WX-6630 SCRAPER,WIRE [MAIN] @ 40.54 ",05/09/2018,0132139,140.54,Revenue,F R Sharrock Ltd,18091,,
Chorley Borough Council,http://statistics.data.gov.uk/id/local-authority/30UE,Service Management & Support,1009,Customer & Digital,Vehicles and Plant Maintenance,30045,Direct Transport Costs,5016,as per quote Q19240;  WX-11457 Gearbox plate,05/09/2018,0132139,146.06,Revenue,F R Sharrock Ltd,18091,,
Chorley Borough Council,http://statistics.data.gov.uk/id/local-authority/30UE,Service Management & Support,1009,Customer & Digital,Vehicles and Plant Maintenance,30045,Direct Transport Costs,5016,2 x Pin-lift pivot,14/09/2018,0132305,26.37,Revenue,F R Sharrock Ltd,18091,,
Chorley Borough Council,http://statistics.data.gov.uk/id/local-authority/30UE,Service Management & Support,1009,Customer & Digital,Vehicles and Plant Maintenance,30045,Direct Transport Costs,5016,4 x Bush-Flan 1/2``x5/8``x1/,14/09/2018,0132305,8.16,Revenue,F R Sharrock Ltd,18091,,
Chorley Borough Council,http://statistics.data.gov.uk/id/local-authority/30UE,Service Management & Support,1009,Customer & Digital,Vehicles and Plant Maintenance,30045,Direct Transport Costs,5016,2 x WLDMT- pivot pin rear,14/09/2018,0132305,88.23,Revenue,F R Sharrock Ltd,18091,,
Chorley Borough Council,http://statistics.data.gov.uk/id/local-authority/30UE,Service Management & Support,1009,Customer & Digital,Vehicles and Plant Maintenance,30045,Direct Transport Costs,5016,3 x Pivot pin cutunt 16.5``,14/09/2018,0132305,90.27,Revenue,F R Sharrock Ltd,18091,,
Chorley Borough Council,http://statistics.data.gov.uk/id/local-authority/30UE,Service Management & Support,1009,Customer & Digital,Supplies - Workshop,40246,"Equipment, Furniture & Materia",5023,1 x Pivot pin cutunt 16.5``,14/09/2018,0132305,30.09,Revenue,F R Sharrock Ltd,18091,,
Chorley Borough Council,http://statistics.data.gov.uk/id/local-authority/30UE,Service Management & Support,1009,Customer & Digital,Vehicles and Plant Maintenance,30045,Direct Transport Costs,5016,4 x BRG 1.5x1.25x1.25 bush,14/09/2018,0132305,21.96,Revenue,F R Sharrock Ltd,18091,,
Chorley Borough Council,http://statistics.data.gov.uk/id/local-authority/30UE,Service Management & Support,1009,Customer & Digital,Vehicles and Plant Maintenance,30045,Direct Transport Costs,5016,"WLDMT-lift arm, front",14/09/2018,0132305,337.25,Revenue,F R Sharrock Ltd,18091,,
Chorley Borough Council,http://statistics.data.gov.uk/id/local-authority/30UE,Service Management & Support,1009,Customer & Digital,Vehicles and Plant Maintenance,30045,Direct Transport Costs,5016,3 x bottom blade NO 8 THK,14/09/2018,0132305,71.76,Revenue,F R Sharrock Ltd,18091,,
Chorley Borough Council,http://statistics.data.gov.uk/id/local-authority/30UE,Service Management & Support,1009,Customer & Digital,Supplies - Workshop,40246,"Equipment, Furniture & Materia",5023,2 x bottom blade NO 8 THK,14/09/2018,0132305,47.84,Revenue,F R Sharrock Ltd,18091,,
Chorley Borough Council,http://statistics.data.gov.uk/id/local-authority/30UE,Service Management & Support,1009,Customer & Digital,Supplies - Workshop,40246,"Equipment, Furniture & Materia",5023,As per Pro-Forma 131729  5 x belt 5 x washer 5 x Blade support M53 25mm 10 x ball bearing 1 x scraper wire 4 x cover-brg Hsg ,26/09/2018,0132629,693.14,Revenue,F R Sharrock Ltd,18091,,
Chorley Borough Council,http://statistics.data.gov.uk/id/local-authority/30UE,Service Management & Support,1009,Customer & Digital,Vehicles and Plant Maintenance,30045,Direct Transport Costs,5016,As per Pro-Forma 102476  Repairs to YX14 FCL and parts as below  Hyd Motor 28.6cc CW+RV Consumables,28/09/2018,0132676,460.01,Revenue,F R Sharrock Ltd,18091,,
Chorley Borough Council,http://statistics.data.gov.uk/id/local-authority/30UE,Corporate Management,1008,Customer & Digital,Tools & Equipment - Maintenance,40005,"Equipment, Furniture & Materia",5023,"On-site repairs to 4x 1100L wheeled bin at Lancaster Court, Chorley",28/09/2018,0132636,300.00,Revenue,Fairport Containers Ltd,17735,,
Chorley Borough Council,http://statistics.data.gov.uk/id/local-authority/30UE,Democratic Represent and  Mgnt,1007,Early Intervention,Grants to Voluntary Organisations,40124,Grants and Subscriptions,5031,Annual maintenance grant 2018/19,14/09/2018,0132352,"8,000.00",Revenue,Fairview Youth & Community Association,20589,,
Chorley Borough Council,http://statistics.data.gov.uk/id/local-authority/30UE,Private Sector HSG Renewal,1073,Early Intervention,Miscellaneous Expenses,40200,Miscellaneous Expenses,5034,,14/09/2018,0132353,"1,368.00",Revenue,Firefly Energi Ltd,69925,,
Chorley Borough Council,http://statistics.data.gov.uk/id/local-authority/30UE,Democratic Represent and  Mgnt,1007,Customer & Digital,Playground Equipment,40008,"Equipment, Furniture & Materia",5023,2- HDPE Backboard Size UK PAS-30 Spec Rectangular 1200x1050mm 2- solid heavy duty basketball ring & net size,28/09/2018,0132605,604.00,Revenue,GB Sport & Leisure,21305,,
Chorley Borough Council,http://statistics.data.gov.uk/id/local-authority/30UE,Unapportionable Central OHeads,1009,Business Development & Growth,General Repairs - Reactive,20004,Repairs Maintenance & Alts,5005,Reactive repairs to auto doors - all sites,19/09/2018,0132373,330.00,Revenue,Geze UK Ltd,18836,,
Chorley Borough Council,http://statistics.data.gov.uk/id/local-authority/30UE,Unapportionable Central OHeads,1009,Business Development & Growth,General Repairs - Reactive,20004,Repairs Maintenance & Alts,5005,Reactive repairs to auto doors - all sites,19/09/2018,0132374,"2,193.80",Revenue,Geze UK Ltd,18836,,
Chorley Borough Council,http://statistics.data.gov.uk/id/local-authority/30UE,Unapportionable Central OHeads,1009,Business Development & Growth,General Repairs - Reactive,20004,Repairs Maintenance & Alts,5005,Reactive repairs to auto doors - all sites,19/09/2018,0132375,718.80,Revenue,Geze UK Ltd,18836,,
Chorley Borough Council,http://statistics.data.gov.uk/id/local-authority/30UE,Capital,Capital,Business Development & Growth,Consultants Fees,03025,Capital Expenditure,Capital,Design of changing facility and car parking up to RIBA stage 4,07/09/2018,0132178,"11,064.00",Capital,Gleeds Management Services Ltd,77165,,
Chorley Borough Council,http://statistics.data.gov.uk/id/local-authority/30UE,Corporate Management,1008,Customer & Digital,Professional Fees,40063,Services,5027,2018/19 Garden Waste Subscriptions,07/09/2018,0132177,259.74,Revenue,GoCardless,77457,,
Chorley Borough Council,http://statistics.data.gov.uk/id/local-authority/30UE,Capital,Capital,Business Development & Growth,Main Contractor,03007,Capital Expenditure,Capital,Chorley Market window,05/09/2018,0131678,"3,190.83",Capital,Goldseal Tradeline Limited,55374,,
Chorley Borough Council,http://statistics.data.gov.uk/id/local-authority/30UE,Democratic Represent and  Mgnt,1007,Policy & Governance,Member Development Programme,17007,Indirect Employee Expenses,5002,"Training course for NAME REDACTED (Combating Gangs, Violence and Weapon Crime).",26/09/2018,0132659,341.10,Revenue,Government Events,77572,,
Chorley Borough Council,http://statistics.data.gov.uk/id/local-authority/30UE,Central Support Services,1009,Early Intervention,Vandalism Repairs,20005,Repairs Maintenance & Alts,5005,Contract for Graffiti removal 2017,05/09/2018,0131840,925.00,Revenue,Graffiti Away,76316,,
Chorley Borough Council,http://statistics.data.gov.uk/id/local-authority/30UE,Corporate Management,1008,Policy & Governance,External Audit,40064,Services,5027,2018/19 Main Audit Fee,19/09/2018,0132538,"8,711.50",Revenue,Grant Thornton UK LLP,57322,,
Chorley Borough Council,http://statistics.data.gov.uk/id/local-authority/30UE,Unapportionable Central OHeads,1009,Policy & Governance,Miscellaneous Expenses,40200,Miscellaneous Expenses,5034,Inside front full page advertisement from September 2018 to March 2019,07/09/2018,0132212,900.00,Revenue,Green Man Marketing,73050,,
Chorley Borough Council,http://statistics.data.gov.uk/id/local-authority/30UE,Tourism,1039,Policy & Governance,Miscellaneous Expenses,40200,Miscellaneous Expenses,5034,flower show prize money,05/09/2018,0132037,300.00,Revenue,NAME REDACTED,76970,,
Chorley Borough Council,http://statistics.data.gov.uk/id/local-authority/30UE,Service Management & Support,1009,Customer & Digital,Supplies-Grounds Maintenance,40025,"Equipment, Furniture & Materia",5023,30 x F14 McConnell Flail,19/09/2018,0132354,300.00,Revenue,Halse South West Ltd,76890,,
Chorley Borough Council,http://statistics.data.gov.uk/id/local-authority/30UE,Service Management & Support,1009,Customer & Digital,Supplies-Grounds Maintenance,40025,"Equipment, Furniture & Materia",5023,Carriage to; Chorley Council Depot Bengal Street Chorley PR7 1RG,19/09/2018,0132354,20.00,Revenue,Halse South West Ltd,76890,,
Chorley Borough Council,http://statistics.data.gov.uk/id/local-authority/30UE,Democratic Represent and  Mgnt,1007,Policy & Governance,Exhibitions & Special Events,40158,Miscellaneous Expenses,5034,"Payment for Pride & Prejudice performance at Astley Hall, Chorley. Delivered on 1/9/18. 70% total ticket fees of 4645",12/09/2018,0132269,"3,251.50",Revenue,Heartbreak Productions,56110,,
Chorley Borough Council,http://statistics.data.gov.uk/id/local-authority/30UE,Tourism,1039,Policy & Governance,Professional Fees,40063,Services,5027,flower show prize money,26/09/2018,0132637,325.00,Revenue,High Park Nurseries,71509,,
Chorley Borough Council,http://statistics.data.gov.uk/id/local-authority/30UE,Central Support Services,1009,Business Development & Growth,Professional Fees,40063,Services,5027,Shady Lane project works,12/09/2018,0132252,487.50,Revenue,Hive Land & Planning Limited,77330,,
Chorley Borough Council,http://statistics.data.gov.uk/id/local-authority/30UE,Central Support Services,1009,Business Development & Growth,Professional Fees,40063,Services,5027,Alker Lane project works,12/09/2018,0132253,"1,458.00",Revenue,Hive Land & Planning Limited,77330,,
Chorley Borough Council,http://statistics.data.gov.uk/id/local-authority/30UE,Central Support Services,1009,Business Development & Growth,Professional Fees,40063,Services,5027,Alker Lane project works,26/09/2018,0132450,567.00,Revenue,Hive Land & Planning Limited,77330,,
Chorley Borough Council,http://statistics.data.gov.uk/id/local-authority/30UE,Central Support Services,1009,Business Development & Growth,Professional Fees,40063,Services,5027,Shady Lane project works,26/09/2018,0132451,406.25,Revenue,Hive Land & Planning Limited,77330,,
Chorley Borough Council,http://statistics.data.gov.uk/id/local-authority/30UE,Capital,Capital,Policy & Governance,Stamp Duty,03026,Capital Expenditure,Capital,ADDRESS REDACTED SDLT,07/09/2018,0132116,500.00,Capital,HM Revenue & Customs,56499,,
Chorley Borough Council,http://statistics.data.gov.uk/id/local-authority/30UE,Unapportionable Central OHeads,1009,Policy & Governance,Miscellaneous Expenses,40200,Miscellaneous Expenses,5034,psa settlement,05/09/2018,0132169,"8,089.88",Revenue,HM Revenue & Customs,21907,,
Chorley Borough Council,http://statistics.data.gov.uk/id/local-authority/30UE,Capital,Capital,Business Development & Growth,Architects Fees,03022,Capital Expenditure,Capital,"For provision of Architectural and Principal Designer Services for the Digital Office Park, Chorley in accordance tender 23.9.2016.",19/09/2018,0132429,"3,127.00",Capital,Howarth Litchfield Partnership,76440,,
Chorley Borough Council,http://statistics.data.gov.uk/id/local-authority/30UE,Capital,Capital,Business Development & Growth,Architects Fees,03022,Capital Expenditure,Capital,"For provision of Architectural and Principal Designer Services for the Digital Office Park, Chorley in accordance tender 23.9.2016.",26/09/2018,0132650,"3,127.00",Capital,Howarth Litchfield Partnership,76440,,
Chorley Borough Council,http://statistics.data.gov.uk/id/local-authority/30UE,Open Spaces,1038,Business Development & Growth,Professional Fees,40063,Services,5027,Project work for Westway Sports Campus,05/09/2018,0132072,830.00,Revenue,Identity Consult Ltd,76426,,
Chorley Borough Council,http://statistics.data.gov.uk/id/local-authority/30UE,Business Support,1095,Business Development & Growth,Miscellaneous Expenses,40200,Miscellaneous Expenses,5034,PM services - Digital Office Park Project - Chorley,19/09/2018,0132428,"2,075.00",Revenue,Identity Consult Ltd,76426,,
Chorley Borough Council,http://statistics.data.gov.uk/id/local-authority/30UE,Business Support,1095,Business Development & Growth,Miscellaneous Expenses,40200,Miscellaneous Expenses,5034,PM services - Digital Office Park Project - Chorley,26/09/2018,0132647,"2,075.00",Revenue,Identity Consult Ltd,76426,,
Chorley Borough Council,http://statistics.data.gov.uk/id/local-authority/30UE,Unapportionable Central OHeads,1009,Customer & Digital,Professional Fees,40063,Services,5027,Analyse LOCAL - one-off RV finder (26 assessments),26/09/2018,0132394,"3,000.00",Revenue,Inform CPI Ltd,77179,,
Chorley Borough Council,http://statistics.data.gov.uk/id/local-authority/30UE,Unapportionable Central OHeads,1009,Customer & Digital,Professional Fees,40063,Services,5027,Analyse LOCAL - one-off RV finder (26 assessments),26/09/2018,0132399,"2,675.00",Revenue,Inform CPI Ltd,77179,,
Chorley Borough Council,http://statistics.data.gov.uk/id/local-authority/30UE,Control Accounts,Control,System,Manual Control Account,00001,Balance Sheet,Balance,,07/09/2018,0131856,380.00,Revenue,Inland Revenue 065py00102078,17445,,
Chorley Borough Council,http://statistics.data.gov.uk/id/local-authority/30UE,Control Accounts,Control,System,Manual Control Account,00001,Balance Sheet,Balance,,07/09/2018,0131858,380.00,Revenue,Inland Revenue 065py00102078,17445,,
Chorley Borough Council,http://statistics.data.gov.uk/id/local-authority/30UE,Business Support,1095,Business Development & Growth,Grants To Other Organisations,40127,Grants and Subscriptions,5031,big grant,05/09/2018,0132154,"3,420.00",Revenue,Inscape Interiors Limited,22374,,
Chorley Borough Council,http://statistics.data.gov.uk/id/local-authority/30UE,Community Development,1097,Business Development & Growth,Rent/Hire Of Premises,20017,Premises Rents,5007,Annual Rent of 35-39 Market st,26/09/2018,0132439,"7,218.75",Revenue,J R Keys,17124,,
Chorley Borough Council,http://statistics.data.gov.uk/id/local-authority/30UE,Corporate Management,1008,Customer & Digital,General Subscriptions,40146,Grants and Subscriptions,5031,Half a years subscription for the period 01.10.2018 - 31.03.2019,26/09/2018,0132529,385.00,Revenue,James Button and Co,77064,,
Chorley Borough Council,http://statistics.data.gov.uk/id/local-authority/30UE,Capital,Capital,Business Development & Growth,Architects Fees,03022,Capital Expenditure,Capital,"Extra items to facilitate the design and construction of the Garden of Reflection:-  Supply Lecturn, content and fitting, ",05/09/2018,0132045,"3,815.00",Capital,John Everiss Design Ltd,69632,,
Chorley Borough Council,http://statistics.data.gov.uk/id/local-authority/30UE,Service Management & Support,1009,Customer & Digital,Grounds Maintenance Contractor,20043,Grounds Maintenance Costs,5013,20 @ 3.6m x 150mm x 50mm green timber,12/09/2018,0132235,150.80,Revenue,John H Mayor & Sons Ltd,16635,,
Chorley Borough Council,http://statistics.data.gov.uk/id/local-authority/30UE,Service Management & Support,1009,Customer & Digital,Grounds Maintenance Contractor,20043,Grounds Maintenance Costs,5013,20 @ 3.6m x 75mm x 75mm green timber,12/09/2018,0132235,113.40,Revenue,John H Mayor & Sons Ltd,16635,,
Chorley Borough Council,http://statistics.data.gov.uk/id/local-authority/30UE,Service Management & Support,1009,Customer & Digital,Grounds Maintenance Contractor,20043,Grounds Maintenance Costs,5013,20 @ 3.6m x 150mm x 25mm green timber,12/09/2018,0132235,76.60,Revenue,John H Mayor & Sons Ltd,16635,,
Chorley Borough Council,http://statistics.data.gov.uk/id/local-authority/30UE,Service Management & Support,1009,Customer & Digital,Grounds Maintenance Contractor,20043,Grounds Maintenance Costs,5013,25 @ 3.6m x 100mm x 38mm green timber,12/09/2018,0132235,95.75,Revenue,John H Mayor & Sons Ltd,16635,,
Chorley Borough Council,http://statistics.data.gov.uk/id/local-authority/30UE,Service Management & Support,1009,Customer & Digital,Grounds Maintenance Contractor,20043,Grounds Maintenance Costs,5013,30 birds mouth post  at 900mm x 75mm x 75mm,12/09/2018,0132235,60.00,Revenue,John H Mayor & Sons Ltd,16635,,
Chorley Borough Council,http://statistics.data.gov.uk/id/local-authority/30UE,Assets Under Construction,,Business Development & Growth,Reclassification,00119,Balance Sheet,Balance,Yarrow valley Car Park Contract Retention,28/09/2018,0132316,"4,961.87",Revenue,John Wade Groundworks Ltd,76676,,
Chorley Borough Council,http://statistics.data.gov.uk/id/local-authority/30UE,Capital,Capital,Business Development & Growth,Main Contractor,03007,Capital Expenditure,Capital,Astley Park Car Park Extension works,28/09/2018,0132324,"48,442.47",Capital,John Wade Groundworks Ltd,76676,,
Chorley Borough Council,http://statistics.data.gov.uk/id/local-authority/30UE,Capital,Capital,Business Development & Growth,Main Contractor,03007,Capital Expenditure,Capital,Astley Park Car Park Extension works,28/09/2018,0132408,"42,163.11",Capital,John Wade Groundworks Ltd,76676,,
Chorley Borough Council,http://statistics.data.gov.uk/id/local-authority/30UE,Development Control,1091,Customer & Digital,Statutory Notices,40160,Miscellaneous Expenses,5034,Planning Public Notices to appear in the Chorley Guardian April 2018 to March 2019,07/09/2018,0132201,262.20,Revenue,Johnston Publishing Ltd,20072,,
Chorley Borough Council,http://statistics.data.gov.uk/id/local-authority/30UE,Parking Services,1066,Business Development & Growth,Statutory Notices,40160,Miscellaneous Expenses,5034,"Advert ref no:  NMC2812669. Publication in Chorley Guardian, size (cm x columns) 14x4, Classification Public Notices, Black, Fir",19/09/2018,0132355,630.00,Revenue,Johnston Publishing Ltd,20072,,
Chorley Borough Council,http://statistics.data.gov.uk/id/local-authority/30UE,Business Support,1095,Business Development & Growth,Professional Fees,40063,Services,5027,Strawberry Fields ERDF project - commercial agency contract,14/09/2018,0132339,"8,000.00",Revenue,Jones Lang Lasalle Ltd,54014,,
Chorley Borough Council,http://statistics.data.gov.uk/id/local-authority/30UE,Tourism,1039,Policy & Governance,Professional Fees,40063,Services,5027,flower show prize money,19/09/2018,0132445,400.00,Revenue,NAME REDACTED,76216,,
Chorley Borough Council,http://statistics.data.gov.uk/id/local-authority/30UE,Homelessness,1075,Early Intervention,External Contractor,40198,Miscellaneous Expenses,5034,PROVISION OF YOUNG PERSONS HOUSING DROP IN Q2 July 2018 - Sep 2018,05/09/2018,0130744,"3,750.00",Revenue,Key,61252,,
Chorley Borough Council,http://statistics.data.gov.uk/id/local-authority/30UE,Planning Policy,1092,Policy & Governance,Professional Fees,40063,Services,5027,Fees of NAME REDACTED for advice relating to NPPF and Housing Delivery Test,14/09/2018,0132342,"1,800.00",Revenue,Kings Chambers Ltd,48008,,
Chorley Borough Council,http://statistics.data.gov.uk/id/local-authority/30UE,Development Control,1091,Policy & Governance,Legal Fees,40171,Miscellaneous Expenses,5034,Fee note of NAME REDACTED in relation to the Botany Bay planning applications - perusing papers and advising in conference ,21/09/2018,0132542,"1,350.00",Revenue,Kings Chambers Ltd,48008,,
Chorley Borough Council,http://statistics.data.gov.uk/id/local-authority/30UE,Development Control,1091,Policy & Governance,Legal Fees,40171,Miscellaneous Expenses,5034,Counsel advice in relation to Botany Bay planning applications,21/09/2018,0132543,"3,200.00",Revenue,Kings Chambers Ltd,48008,,
Chorley Borough Council,http://statistics.data.gov.uk/id/local-authority/30UE,Central Support Services,1009,Customer & Digital,Computer Equipment-Purchase,40098,Communication and Computing,5028,45 x Belkin Qode 9.7`` Flip Case,12/09/2018,0132282,"2,070.00",Revenue,Kingsfield Computer Products LTD,77551,,
Chorley Borough Council,http://statistics.data.gov.uk/id/local-authority/30UE,Unapportionable Central OHeads,1009,Business Development & Growth,General Repairs - Reactive,20004,Repairs Maintenance & Alts,5005,empty septic tank at yarrow valley park,19/09/2018,0132347,425.00,Revenue,Kingspan Environmental Service,67443,,
Chorley Borough Council,http://statistics.data.gov.uk/id/local-authority/30UE,Planning Policy,1092,Business Development & Growth,Survey Expenses,40069,Services,5027,Chorley Council Open Space Consultation - Reproduce Survey and Publish the survey results -  3 days cost of 550 per day VAT,28/09/2018,0132340,"1,650.00",Revenue,Knight Kavanah & Page,20440,,
Chorley Borough Council,http://statistics.data.gov.uk/id/local-authority/30UE,Capital,Capital,Business Development & Growth,Main Contractor,03007,Capital Expenditure,Capital,"Additional Work to the Harpers Lane Play Area Contract. To break out the old footpath, remove, reinstate the land to grass. ",12/09/2018,0132283,"1,600.00",Capital,Kompan,61460,,
Chorley Borough Council,http://statistics.data.gov.uk/id/local-authority/30UE,Capital,Capital,Business Development & Growth,Main Contractor,03007,Capital Expenditure,Capital,The Design and Build of a play area for ages 2 - 12 on Harpers Lane Recreation Ground to the details submitted in the quotation.,19/09/2018,0132333,"70,000.00",Capital,Kompan,61460,,
Chorley Borough Council,http://statistics.data.gov.uk/id/local-authority/30UE,Control Accounts,Control,Policy & Governance,General Balances,00100,Balance Sheet,Balance,monthly deds from expenses,19/09/2018,0132464,"1,283.96",Revenue,Labour Councillors Association,17577,,
Chorley Borough Council,http://statistics.data.gov.uk/id/local-authority/30UE,Central Support Services,1009,Customer & Digital,Computer Equipment-Purchase,40098,Communication and Computing,5028,6 X DOMAIN NAME ANNUAL CHARGES 1/4/17 - 31/3/18,26/09/2018,0125192,548.34,Revenue,Lancashire County Council,17758,,
Chorley Borough Council,http://statistics.data.gov.uk/id/local-authority/30UE,Capital,Capital,Early Intervention,Grants,03002,Capital Expenditure,Capital,Grant,05/09/2018,0132099,"1,409.78",Capital,Lancashire County Council,17758,,
Chorley Borough Council,http://statistics.data.gov.uk/id/local-authority/30UE,Capital,Capital,Early Intervention,Grants,03002,Capital Expenditure,Capital,Grant,05/09/2018,0132100,"2,504.00",Capital,Lancashire County Council,17758,,
Chorley Borough Council,http://statistics.data.gov.uk/id/local-authority/30UE,Capital,Capital,Early Intervention,Grants,03002,Capital Expenditure,Capital,Grant,05/09/2018,0132101,"2,803.00",Capital,Lancashire County Council,17758,,
Chorley Borough Council,http://statistics.data.gov.uk/id/local-authority/30UE,Capital,Capital,Early Intervention,Grants,03002,Capital Expenditure,Capital,Grant,05/09/2018,0132102,"3,673.77",Capital,Lancashire County Council,17758,,
Chorley Borough Council,http://statistics.data.gov.uk/id/local-authority/30UE,Capital,Capital,Early Intervention,Grants,03002,Capital Expenditure,Capital,Grant,05/09/2018,0132103,837.75,Capital,Lancashire County Council,17758,,
Chorley Borough Council,http://statistics.data.gov.uk/id/local-authority/30UE,Capital,Capital,Early Intervention,Grants,03002,Capital Expenditure,Capital,Grant,05/09/2018,0132104,"2,322.03",Capital,Lancashire County Council,17758,,
Chorley Borough Council,http://statistics.data.gov.uk/id/local-authority/30UE,Capital,Capital,Early Intervention,Grants,03002,Capital Expenditure,Capital,Grant,05/09/2018,0132105,"3,731.00",Capital,Lancashire County Council,17758,,
Chorley Borough Council,http://statistics.data.gov.uk/id/local-authority/30UE,Capital,Capital,Early Intervention,Grants,03002,Capital Expenditure,Capital,Grant,05/09/2018,0132106,"3,556.00",Capital,Lancashire County Council,17758,,
Chorley Borough Council,http://statistics.data.gov.uk/id/local-authority/30UE,Capital,Capital,Early Intervention,Grants,03002,Capital Expenditure,Capital,ADDRESS REDACTED,05/09/2018,0132110,"6,810.00",Capital,Lancashire County Council,17758,,
Chorley Borough Council,http://statistics.data.gov.uk/id/local-authority/30UE,Capital,Capital,Early Intervention,Grants,03002,Capital Expenditure,Capital,Grant,05/09/2018,0132111,"3,807.00",Capital,Lancashire County Council,17758,,
Chorley Borough Council,http://statistics.data.gov.uk/id/local-authority/30UE,Capital,Capital,Early Intervention,Grants,03002,Capital Expenditure,Capital,Grant,21/09/2018,0132465,"3,139.00",Capital,Lancashire County Council,17758,,
Chorley Borough Council,http://statistics.data.gov.uk/id/local-authority/30UE,Capital,Capital,Early Intervention,Grants,03002,Capital Expenditure,Capital,GRant,21/09/2018,0132477,"4,714.00",Capital,Lancashire County Council,17758,,
Chorley Borough Council,http://statistics.data.gov.uk/id/local-authority/30UE,Corporate Management,1008,Customer & Digital,Clinical Waste Collection,50007,Private Contractors,5042,"Disposal of clinical waste from Chorley household. April 2018 to March 2019.   Yellow bag collections, approx. 500 per month.",07/09/2018,0132184,683.43,Revenue,Lancashire Teaching Hospitals NHS FT,19003,,
Chorley Borough Council,http://statistics.data.gov.uk/id/local-authority/30UE,Unapportionable Central OHeads,1009,Policy & Governance,Legal Fees,40171,Miscellaneous Expenses,5034,Fees of NAME REDACTED from 06.08.18 - 28.08.18 in respect of Buckshaw Village - former Royal Ordnance Factory Complex,14/09/2018,0132341,"12,550.00",Revenue,Landmark Chambers,56730,,
Chorley Borough Council,http://statistics.data.gov.uk/id/local-authority/30UE,Capital,Capital,Business Development & Growth,Main Contractor,03007,Capital Expenditure,Capital,"Landscape Works at Harpers Lane Recreation Ground. Refurbishment of gates and railings, existing ball court enhancement",19/09/2018,0132346,"34,344.60",Capital,Landscape Engineering Ltd,54727,,
Chorley Borough Council,http://statistics.data.gov.uk/id/local-authority/30UE,Unapportionable Central OHeads,1009,Policy & Governance,HR Approved Training Expenses,17001,Indirect Employee Expenses,5002,Learning Pool Contract Renewal August 2018,19/09/2018,0132425,"5,300.00",Revenue,Learning Pool Limited,76161,,
Chorley Borough Council,http://statistics.data.gov.uk/id/local-authority/30UE,Development Control,1091,Customer & Digital,Car Leasing Payment,14100,Direct Employee Expenses,5001,NAME REDACTED,19/09/2018,0132054,"3,409.44",Revenue,Lex Autolease Ltd,70682,,
Chorley Borough Council,http://statistics.data.gov.uk/id/local-authority/30UE,Development Control,1091,Customer & Digital,Car Leasing Payment,14100,Direct Employee Expenses,5001,Car Lease,19/09/2018,0132054,277.82,Revenue,Lex Autolease Ltd,70682,,
Chorley Borough Council,http://statistics.data.gov.uk/id/local-authority/30UE,Corporate Management,1008,Policy & Governance,Exhibitions & Special Events,40158,Miscellaneous Expenses,5034,Summer activities on market walk,12/09/2018,0132325,"1,000.00",Revenue,Louby Lou Ltd,76335,,
Chorley Borough Council,http://statistics.data.gov.uk/id/local-authority/30UE,Unapportionable Central OHeads,1009,Chief Executive,Stationery,40050,"Printing, Stationery & General",5026,box 25 DVD printable,12/09/2018,0132320,34.32,Revenue,Lyreco UK Ltd,17623,,
Chorley Borough Council,http://statistics.data.gov.uk/id/local-authority/30UE,Unapportionable Central OHeads,1009,Chief Executive,Stationery,40050,"Printing, Stationery & General",5026,Cyan ink cartridge,12/09/2018,0132320,15.73,Revenue,Lyreco UK Ltd,17623,,
Chorley Borough Council,http://statistics.data.gov.uk/id/local-authority/30UE,Unapportionable Central OHeads,1009,Chief Executive,Stationery,40050,"Printing, Stationery & General",5026,Magenta ink cartridge,12/09/2018,0132320,15.73,Revenue,Lyreco UK Ltd,17623,,
Chorley Borough Council,http://statistics.data.gov.uk/id/local-authority/30UE,Unapportionable Central OHeads,1009,Chief Executive,Stationery,40050,"Printing, Stationery & General",5026,A5 Desktop Display,12/09/2018,0132320,15.42,Revenue,Lyreco UK Ltd,17623,,
Chorley Borough Council,http://statistics.data.gov.uk/id/local-authority/30UE,Unapportionable Central OHeads,1009,Chief Executive,Stationery,40050,"Printing, Stationery & General",5026,Display racks 1/3 A4 W/3 COMP,12/09/2018,0132320,9.85,Revenue,Lyreco UK Ltd,17623,,
Chorley Borough Council,http://statistics.data.gov.uk/id/local-authority/30UE,Unapportionable Central OHeads,1009,Chief Executive,Stationery,40050,"Printing, Stationery & General",5026,Certificate Frame Gold,12/09/2018,0132320,7.07,Revenue,Lyreco UK Ltd,17623,,
Chorley Borough Council,http://statistics.data.gov.uk/id/local-authority/30UE,Unapportionable Central OHeads,1009,Chief Executive,Stationery,40050,"Printing, Stationery & General",5026,A Frame Display,12/09/2018,0132320,108.99,Revenue,Lyreco UK Ltd,17623,,
Chorley Borough Council,http://statistics.data.gov.uk/id/local-authority/30UE,Unapportionable Central OHeads,1009,Chief Executive,Stationery,40050,"Printing, Stationery & General",5026,Micron Stick Ball Point,12/09/2018,0132320,1.50,Revenue,Lyreco UK Ltd,17623,,
Chorley Borough Council,http://statistics.data.gov.uk/id/local-authority/30UE,Unapportionable Central OHeads,1009,Chief Executive,Stationery,40050,"Printing, Stationery & General",5026,Pencil Sharpener Barrell,12/09/2018,0132320,2.71,Revenue,Lyreco UK Ltd,17623,,
Chorley Borough Council,http://statistics.data.gov.uk/id/local-authority/30UE,Unapportionable Central OHeads,1009,Chief Executive,Stationery,40050,"Printing, Stationery & General",5026,Matt Laminating Pouches,12/09/2018,0132320,15.35,Revenue,Lyreco UK Ltd,17623,,
Chorley Borough Council,http://statistics.data.gov.uk/id/local-authority/30UE,Unapportionable Central OHeads,1009,Chief Executive,Stationery,40050,"Printing, Stationery & General",5026, A4 Multi-Punched Plastic Pockets 80 Microns - Pack Of 100,12/09/2018,0132320,9.30,Revenue,Lyreco UK Ltd,17623,,
Chorley Borough Council,http://statistics.data.gov.uk/id/local-authority/30UE,Unapportionable Central OHeads,1009,Chief Executive,Stationery,40050,"Printing, Stationery & General",5026,ADHESIVE LABELS 50MM DIA - COMPANY SEAL - RED - PACK OF 8,12/09/2018,0132320,3.36,Revenue,Lyreco UK Ltd,17623,,
Chorley Borough Council,http://statistics.data.gov.uk/id/local-authority/30UE,Unapportionable Central OHeads,1009,Chief Executive,Stationery,40050,"Printing, Stationery & General",5026,Elba Spring Pocket Files - Green,12/09/2018,0132320,14.35,Revenue,Lyreco UK Ltd,17623,,
Chorley Borough Council,http://statistics.data.gov.uk/id/local-authority/30UE,Unapportionable Central OHeads,1009,Chief Executive,Stationery,40050,"Printing, Stationery & General",5026,Permanent Marker,12/09/2018,0132320,11.40,Revenue,Lyreco UK Ltd,17623,,
Chorley Borough Council,http://statistics.data.gov.uk/id/local-authority/30UE,Unapportionable Central OHeads,1009,Chief Executive,Stationery,40050,"Printing, Stationery & General",5026,Lyreco Assorted Colour Highlighters - Wallet Of 6,12/09/2018,0132320,0.91,Revenue,Lyreco UK Ltd,17623,,
Chorley Borough Council,http://statistics.data.gov.uk/id/local-authority/30UE,Unapportionable Central OHeads,1009,Chief Executive,Stationery,40050,"Printing, Stationery & General",5026,Lyreco office wet wipes,12/09/2018,0132320,3.33,Revenue,Lyreco UK Ltd,17623,,
Chorley Borough Council,http://statistics.data.gov.uk/id/local-authority/30UE,Unapportionable Central OHeads,1009,Chief Executive,Stationery,40050,"Printing, Stationery & General",5026,Steward Sup Prem Certif Frames A4 Silver,12/09/2018,0132320,7.07,Revenue,Lyreco UK Ltd,17623,,
Chorley Borough Council,http://statistics.data.gov.uk/id/local-authority/30UE,Service Management & Support,1009,Customer & Digital,Grounds Maintenance Contractor,20043,Grounds Maintenance Costs,5013,As per invoice 34 - for tree works carried out 02/07/18 - 31/07/18,05/09/2018,0132060,"2,435.00",Revenue,M J Walker,62044,,
Chorley Borough Council,http://statistics.data.gov.uk/id/local-authority/30UE,Service Management & Support,1009,Customer & Digital,Grounds Maintenance Contractor,20043,Grounds Maintenance Costs,5013,as per invoice 35: Various tree works carried out from 03-08-18 to 28-08-18,26/09/2018,0132643,"1,645.00",Revenue,M J Walker,62044,,
Chorley Borough Council,http://statistics.data.gov.uk/id/local-authority/30UE,Capital,Capital,Early Intervention,Grants,03002,Capital Expenditure,Capital,Grant,05/09/2018,0132096,"3,290.00",Capital,M.J Park Building Contractors,20367,,
Chorley Borough Council,http://statistics.data.gov.uk/id/local-authority/30UE,Capital,Capital,Early Intervention,Grants,03002,Capital Expenditure,Capital,Grant,21/09/2018,0132444,"3,848.00",Capital,M.J Park Building Contractors,20367,,
Chorley Borough Council,http://statistics.data.gov.uk/id/local-authority/30UE,Capital,Capital,Early Intervention,Grants,03002,Capital Expenditure,Capital,ADDRESS REDACTED,26/09/2018,0132596,"3,385.00",Capital,M.J Park Building Contractors,20367,,
Chorley Borough Council,http://statistics.data.gov.uk/id/local-authority/30UE,Central Support Services,1009,Early Intervention,Miscellaneous Expenses,40200,Miscellaneous Expenses,5034,Annual membership with Mallard Consultancy for enforcement training and consultancy . Funding for this was through the Police,05/09/2018,0132126,990.00,Revenue,Mallard Consultancy LTD,76458,,
Chorley Borough Council,http://statistics.data.gov.uk/id/local-authority/30UE,Unapportionable Central OHeads,1009,Policy & Governance,Miscellaneous Expenses,40200,Miscellaneous Expenses,5034,Photos of the town centre,05/09/2018,0131726,300.00,Revenue,Martin Birchall Photography,22503,,
Chorley Borough Council,http://statistics.data.gov.uk/id/local-authority/30UE,Tourism,1039,Policy & Governance,Supplies-Grounds Maintenance,40025,"Equipment, Furniture & Materia",5023,Flower show photography,05/09/2018,0131727,325.00,Revenue,Martin Birchall Photography,22503,,
Chorley Borough Council,http://statistics.data.gov.uk/id/local-authority/30UE,Unapportionable Central OHeads,1009,Policy & Governance,Agency Staff,13000,Direct Employee Expenses,5001,AGENCY COST,12/09/2018,0132270,"1,395.20",Revenue,Matrix SCM Ltd,22128,,
Chorley Borough Council,http://statistics.data.gov.uk/id/local-authority/30UE,Unapportionable Central OHeads,1009,Policy & Governance,Agency Staff,13000,Direct Employee Expenses,5001,AGENCY COST,12/09/2018,0132270,899.48,Revenue,Matrix SCM Ltd,22128,,
Chorley Borough Council,http://statistics.data.gov.uk/id/local-authority/30UE,Central Support Services,1009,Policy & Governance,Agency Staff,13000,Direct Employee Expenses,5001,AGENCY COST,19/09/2018,0132377,697.60,Revenue,Matrix SCM Ltd,22128,,
Chorley Borough Council,http://statistics.data.gov.uk/id/local-authority/30UE,Unapportionable Central OHeads,1009,Policy & Governance,Agency Staff,13000,Direct Employee Expenses,5001,AGENCY COST,19/09/2018,0132377,419.44,Revenue,Matrix SCM Ltd,22128,,
Chorley Borough Council,http://statistics.data.gov.uk/id/local-authority/30UE,Central Support Services,1009,Policy & Governance,Agency Staff,13000,Direct Employee Expenses,5001,AGENCY COST - mileage,19/09/2018,0132377,18.92,Revenue,Matrix SCM Ltd,22128,,
Chorley Borough Council,http://statistics.data.gov.uk/id/local-authority/30UE,Central Support Services,1009,Policy & Governance,Agency Staff,13000,Direct Employee Expenses,5001,AGENCY COST,19/09/2018,0132377,884.87,Revenue,Matrix SCM Ltd,22128,,
Chorley Borough Council,http://statistics.data.gov.uk/id/local-authority/30UE,Unapportionable Central OHeads,1009,Policy & Governance,Agency Staff,13000,Direct Employee Expenses,5001,AGENCY COST,19/09/2018,0132377,730.45,Revenue,Matrix SCM Ltd,22128,,
Chorley Borough Council,http://statistics.data.gov.uk/id/local-authority/30UE,Central Support Services,1009,Policy & Governance,Agency Staff,13000,Direct Employee Expenses,5001,AGENCY COST,21/09/2018,0132561,697.60,Revenue,Matrix SCM Ltd,22128,,
Chorley Borough Council,http://statistics.data.gov.uk/id/local-authority/30UE,Unapportionable Central OHeads,1009,Policy & Governance,Agency Staff,13000,Direct Employee Expenses,5001,AGENCY COST,21/09/2018,0132561,431.51,Revenue,Matrix SCM Ltd,22128,,
Chorley Borough Council,http://statistics.data.gov.uk/id/local-authority/30UE,Central Support Services,1009,Policy & Governance,Agency Staff,13000,Direct Employee Expenses,5001,AGENCY COST - mileage,21/09/2018,0132561,15.05,Revenue,Matrix SCM Ltd,22128,,
Chorley Borough Council,http://statistics.data.gov.uk/id/local-authority/30UE,Central Support Services,1009,Policy & Governance,Agency Staff,13000,Direct Employee Expenses,5001,AGENCY COST,21/09/2018,0132561,884.87,Revenue,Matrix SCM Ltd,22128,,
Chorley Borough Council,http://statistics.data.gov.uk/id/local-authority/30UE,Unapportionable Central OHeads,1009,Policy & Governance,Agency Staff,13000,Direct Employee Expenses,5001,AGENCY COST,21/09/2018,0132561,730.44,Revenue,Matrix SCM Ltd,22128,,
Chorley Borough Council,http://statistics.data.gov.uk/id/local-authority/30UE,Service Management & Support,1009,Customer & Digital,Supplies-Grounds Maintenance,40025,"Equipment, Furniture & Materia",5023,20 ton of Grade 1 top soil,05/09/2018,0131961,449.68,Revenue,Mc & Ma Stewart (Haulage Ltd),16627,,
Chorley Borough Council,http://statistics.data.gov.uk/id/local-authority/30UE,Service Management & Support,1009,Customer & Digital,Supplies-Grounds Maintenance,40025,"Equipment, Furniture & Materia",5023,20 Tonne of grade 1 top soil @ 20 per tonne,05/09/2018,0131972,400.00,Revenue,Mc & Ma Stewart (Haulage Ltd),16627,,
Chorley Borough Council,http://statistics.data.gov.uk/id/local-authority/30UE,Service Management & Support,1009,Customer & Digital,Supplies-Grounds Maintenance,40025,"Equipment, Furniture & Materia",5023,20 ton of Ultitrec for Limbrick Cricket Ground,26/09/2018,0132627,414.92,Revenue,Mc & Ma Stewart (Haulage Ltd),16627,,
Chorley Borough Council,http://statistics.data.gov.uk/id/local-authority/30UE,Service Management & Support,1009,Customer & Digital,Supplies-Grounds Maintenance,40025,"Equipment, Furniture & Materia",5023,40 ton of Ultitrec for Limbrick Cricket Ground,26/09/2018,0132628,832.83,Revenue,Mc & Ma Stewart (Haulage Ltd),16627,,
Chorley Borough Council,http://statistics.data.gov.uk/id/local-authority/30UE,Corporate Management,1008,Chief Executive,Other Fees,40212,Miscellaneous Expenses,5034,Provision of Face to Face and Remote management support and Development for NAME REDACTED Sept 2017 - July 2018,12/09/2018,0129802,"2,929.60",Revenue,Menrva Strategic Solutions,77249,,
Chorley Borough Council,http://statistics.data.gov.uk/id/local-authority/30UE,Business Support,1095,Policy & Governance,Professional Fees,40063,Services,5027,Fee for accountant�s certificate in respect of Market Walk Service Charge accounts 2017/18,05/09/2018,0132090,900.00,Revenue,Menzies LLP,76095,,
Chorley Borough Council,http://statistics.data.gov.uk/id/local-authority/30UE,Capital,Capital,Early Intervention,Grants,03002,Capital Expenditure,Capital,Grant,05/09/2018,0132107,"4,598.47",Capital,Mint Northwest Ltd,65607,,
Chorley Borough Council,http://statistics.data.gov.uk/id/local-authority/30UE,Capital,Capital,Early Intervention,Grants,03002,Capital Expenditure,Capital,Grant,05/09/2018,0132108,"5,093.92",Capital,Mint Northwest Ltd,65607,,
Chorley Borough Council,http://statistics.data.gov.uk/id/local-authority/30UE,Capital,Capital,Early Intervention,Grants,03002,Capital Expenditure,Capital,Grant,21/09/2018,0132442,"4,108.34",Capital,Mint Northwest Ltd,65607,,
Chorley Borough Council,http://statistics.data.gov.uk/id/local-authority/30UE,Capital,Capital,Early Intervention,Grants,03002,Capital Expenditure,Capital,ADDRESS REDACTED,26/09/2018,0132595,"3,742.08",Capital,Mint Northwest Ltd,65607,,
Chorley Borough Council,http://statistics.data.gov.uk/id/local-authority/30UE,Business Support,1095,Business Development & Growth,Grants To Other Organisations,40127,Grants and Subscriptions,5031,starting business grant,12/09/2018,0132304,250.00,Revenue,NAME REDACTED,77442,,
Chorley Borough Council,http://statistics.data.gov.uk/id/local-authority/30UE,Service Management & Support,1009,Customer & Digital,Vehicles and Plant Maintenance,30045,Direct Transport Costs,5016,Engineer visit to inspect on-board weighing devices of 15 vehicles and provide details of any faults,12/09/2018,0132291,595.00,Revenue,Mobile Installation Solutions (UK) Limited,77210,,
Chorley Borough Council,http://statistics.data.gov.uk/id/local-authority/30UE,Private Sector HSG Renewal,1073,Early Intervention,External Contractor,40198,Miscellaneous Expenses,5034,REF: 25018,26/09/2018,0132594,66.00,Revenue,Mobility Care Services,70841,,
Chorley Borough Council,http://statistics.data.gov.uk/id/local-authority/30UE,Private Sector HSG Renewal,1073,Early Intervention,External Contractor,40198,Miscellaneous Expenses,5034,REF:25019,26/09/2018,0132594,66.00,Revenue,Mobility Care Services,70841,,
Chorley Borough Council,http://statistics.data.gov.uk/id/local-authority/30UE,Private Sector HSG Renewal,1073,Early Intervention,External Contractor,40198,Miscellaneous Expenses,5034,REF: 25024,26/09/2018,0132594,66.00,Revenue,Mobility Care Services,70841,,
Chorley Borough Council,http://statistics.data.gov.uk/id/local-authority/30UE,Private Sector HSG Renewal,1073,Early Intervention,External Contractor,40198,Miscellaneous Expenses,5034,REF: 25039,26/09/2018,0132594,460.00,Revenue,Mobility Care Services,70841,,
Chorley Borough Council,http://statistics.data.gov.uk/id/local-authority/30UE,Private Sector HSG Renewal,1073,Early Intervention,External Contractor,40198,Miscellaneous Expenses,5034,REF: 25040,26/09/2018,0132594,222.00,Revenue,Mobility Care Services,70841,,
Chorley Borough Council,http://statistics.data.gov.uk/id/local-authority/30UE,Private Sector HSG Renewal,1073,Early Intervention,External Contractor,40198,Miscellaneous Expenses,5034,REF:25055,26/09/2018,0132594,132.00,Revenue,Mobility Care Services,70841,,
Chorley Borough Council,http://statistics.data.gov.uk/id/local-authority/30UE,Private Sector HSG Renewal,1073,Early Intervention,External Contractor,40198,Miscellaneous Expenses,5034,REF: 25056,26/09/2018,0132594,66.00,Revenue,Mobility Care Services,70841,,
Chorley Borough Council,http://statistics.data.gov.uk/id/local-authority/30UE,Private Sector HSG Renewal,1073,Early Intervention,External Contractor,40198,Miscellaneous Expenses,5034,REF: 25080,26/09/2018,0132594,66.00,Revenue,Mobility Care Services,70841,,
Chorley Borough Council,http://statistics.data.gov.uk/id/local-authority/30UE,Private Sector HSG Renewal,1073,Early Intervention,External Contractor,40198,Miscellaneous Expenses,5034,REF; 25061,26/09/2018,0132594,66.00,Revenue,Mobility Care Services,70841,,
Chorley Borough Council,http://statistics.data.gov.uk/id/local-authority/30UE,Private Sector HSG Renewal,1073,Early Intervention,External Contractor,40198,Miscellaneous Expenses,5034,REF: 25082,26/09/2018,0132594,128.00,Revenue,Mobility Care Services,70841,,
Chorley Borough Council,http://statistics.data.gov.uk/id/local-authority/30UE,Private Sector HSG Renewal,1073,Early Intervention,External Contractor,40198,Miscellaneous Expenses,5034,REF: 25071,26/09/2018,0132594,650.00,Revenue,Mobility Care Services,70841,,
Chorley Borough Council,http://statistics.data.gov.uk/id/local-authority/30UE,Private Sector HSG Renewal,1073,Early Intervention,External Contractor,40198,Miscellaneous Expenses,5034,REF; 25070,26/09/2018,0132594,256.00,Revenue,Mobility Care Services,70841,,
Chorley Borough Council,http://statistics.data.gov.uk/id/local-authority/30UE,Private Sector HSG Renewal,1073,Early Intervention,External Contractor,40198,Miscellaneous Expenses,5034,REF; 25079,26/09/2018,0132594,220.00,Revenue,Mobility Care Services,70841,,
Chorley Borough Council,http://statistics.data.gov.uk/id/local-authority/30UE,Private Sector HSG Renewal,1073,Early Intervention,External Contractor,40198,Miscellaneous Expenses,5034,REF; 25060,26/09/2018,0132594,66.00,Revenue,Mobility Care Services,70841,,
Chorley Borough Council,http://statistics.data.gov.uk/id/local-authority/30UE,Private Sector HSG Renewal,1073,Early Intervention,External Contractor,40198,Miscellaneous Expenses,5034,REF; 25098,26/09/2018,0132594,160.00,Revenue,Mobility Care Services,70841,,
Chorley Borough Council,http://statistics.data.gov.uk/id/local-authority/30UE,Private Sector HSG Renewal,1073,Early Intervention,External Contractor,40198,Miscellaneous Expenses,5034,REF; 25100,26/09/2018,0132594,66.00,Revenue,Mobility Care Services,70841,,
Chorley Borough Council,http://statistics.data.gov.uk/id/local-authority/30UE,Private Sector HSG Renewal,1073,Early Intervention,External Contractor,40198,Miscellaneous Expenses,5034,REF; 25099,26/09/2018,0132594,66.00,Revenue,Mobility Care Services,70841,,
Chorley Borough Council,http://statistics.data.gov.uk/id/local-authority/30UE,Private Sector HSG Renewal,1073,Early Intervention,External Contractor,40198,Miscellaneous Expenses,5034,REF; 25062,26/09/2018,0132594,66.00,Revenue,Mobility Care Services,70841,,
Chorley Borough Council,http://statistics.data.gov.uk/id/local-authority/30UE,Private Sector HSG Renewal,1073,Early Intervention,External Contractor,40198,Miscellaneous Expenses,5034,REF; 25081,26/09/2018,0132594,66.00,Revenue,Mobility Care Services,70841,,
Chorley Borough Council,http://statistics.data.gov.uk/id/local-authority/30UE,Central Support Services,1009,Early Intervention,Licence Fees,60084,Customer & Client Receipts,5064,licence fees environmental,28/09/2018,0132644,395.50,Revenue,NAME REDACTED,77592,,
Chorley Borough Council,http://statistics.data.gov.uk/id/local-authority/30UE,Service Management & Support,1009,Customer & Digital,Grounds Maintenance Contractor,20043,Grounds Maintenance Costs,5013,"Remove tree stumps and re-level ground - Phase 2 - Muslim section, Chorley Cemetery = Hire JCB",26/09/2018,0132303,"1,600.00",Revenue,Mr Stephen Scambler,16710,,
Chorley Borough Council,http://statistics.data.gov.uk/id/local-authority/30UE,Service Management & Support,1009,Customer & Digital,Grounds Maintenance Contractor,20043,Grounds Maintenance Costs,5013,Labour,26/09/2018,0132303,600.00,Revenue,Mr Stephen Scambler,16710,,
Chorley Borough Council,http://statistics.data.gov.uk/id/local-authority/30UE,Unapportionable Central OHeads,1009,Policy & Governance,Exhibitions & Special Events,40158,Miscellaneous Expenses,5034,Description: Silicone Wristbands Options: Type: Printed - Product Colour: 1 colour PMS326c - Print Colour: Whitec - Size: Adult,05/09/2018,0132137,"1,560.00",Revenue,Munco International T/A Adband,60837,,
Chorley Borough Council,http://statistics.data.gov.uk/id/local-authority/30UE,Service Management & Support,1009,Customer & Digital,Training Course Fees,17010,Indirect Employee Expenses,5002,Tractor and gang mower training for NAMES REDACTED on Friday 10th August 2018,26/09/2018,0132551,560.00,Revenue,Myerscough College,18214,,
Chorley Borough Council,http://statistics.data.gov.uk/id/local-authority/30UE,Tourism,1039,Policy & Governance,Supplies-Grounds Maintenance,40025,"Equipment, Furniture & Materia",5023,20PP A5 + 4PP COVER CHORLEY FLOWER SHOW 2018,05/09/2018,0131869,"1,200.00",Revenue,N B Colour Print Ltd,17917,,
Chorley Borough Council,http://statistics.data.gov.uk/id/local-authority/30UE,Tourism,1039,Policy & Governance,Supplies-Grounds Maintenance,40025,"Equipment, Furniture & Materia",5023,1k - 1PP A5 DIE CUT PLANT SELFIE CARD [350GSM SILK],05/09/2018,0131870,300.00,Revenue,N B Colour Print Ltd,17917,,
Chorley Borough Council,http://statistics.data.gov.uk/id/local-authority/30UE,Tourism,1039,Policy & Governance,Professional Fees,40063,Services,5027,chorley flower show prize money,21/09/2018,0132534,300.00,Revenue,NAME REDACTED,76965,,
Chorley Borough Council,http://statistics.data.gov.uk/id/local-authority/30UE,Tourism,1039,Policy & Governance,Professional Fees,40063,Services,5027,prize money for shorley flower show,21/09/2018,0132535,300.00,Revenue,NAME REDACTED,76959,,
Chorley Borough Council,http://statistics.data.gov.uk/id/local-authority/30UE,Service Management & Support,1009,Customer & Digital,Refuse Collection,20037,Cleaning and Domestic Supplies,5012,Exchange of 35yrd Street cleaning and flytip skip at price quoted from Bengal St depot PR7 1SA,05/09/2018,0128047,"3,292.69",Revenue,Neales Waste Management,17583,,
Chorley Borough Council,http://statistics.data.gov.uk/id/local-authority/30UE,Service Management & Support,1009,Customer & Digital,Refuse Collection,20037,Cleaning and Domestic Supplies,5012,Exchange of 35yrd compostable green waste skip at price quoted from Bengal St depot PR7 1SA,05/09/2018,0128047,280.00,Revenue,Neales Waste Management,17583,,
Chorley Borough Council,http://statistics.data.gov.uk/id/local-authority/30UE,Service Management & Support,1009,Customer & Digital,Refuse Collection,20037,Cleaning and Domestic Supplies,5012,Charge for disposal of compostable green waste at price quoted,05/09/2018,0128047,"4,725.00",Revenue,Neales Waste Management,17583,,
Chorley Borough Council,http://statistics.data.gov.uk/id/local-authority/30UE,Tourism,1039,Policy & Governance,External Contractor,40198,Miscellaneous Expenses,5034,Site Security for Astley Park,05/09/2018,0131505,"4,185.00",Revenue,New Concept Security Ltd,77501,,
Chorley Borough Council,http://statistics.data.gov.uk/id/local-authority/30UE,Corporate Management,1008,Customer & Digital,Interment Fees,60078,Customer & Client Receipts,5064,interment fees chorley,05/09/2018,0132083,354.00,Revenue,Newland and Wilkinson Independent Funeral Director,77497,,
Chorley Borough Council,http://statistics.data.gov.uk/id/local-authority/30UE,Central Support Services,1009,Customer & Digital,Miscellaneous Expenses,40200,Miscellaneous Expenses,5034,5 x full page inserts for Chorley and Leyland Citizen @ 223.54 per insert. Artwork to follow in email,12/09/2018,0132229,894.16,Revenue,Newsquest (Lancashire) Limited,18117,,
Chorley Borough Council,http://statistics.data.gov.uk/id/local-authority/30UE,Capital,Capital,Customer & Digital,Main Contractor,03007,Capital Expenditure,Capital,Grant No. 11,19/09/2018,0132526,"107,286.07",Capital,Next Big Thing Developments,77044,,
Chorley Borough Council,http://statistics.data.gov.uk/id/local-authority/30UE,Unapportionable Central OHeads,1009,Chief Executive,Stationery,40050,"Printing, Stationery & General",5026,Newspaper fro Union St 1 April 2018 - 31 March 2019,21/09/2018,0132548,299.50,Revenue,Nooze `n` Booze,19382,,
Chorley Borough Council,http://statistics.data.gov.uk/id/local-authority/30UE,Tourism,1039,Policy & Governance,Professional Fees,40063,Services,5027,flower prize mon,21/09/2018,0132537,250.00,Revenue,NAME REDACTED,77590,,
Chorley Borough Council,http://statistics.data.gov.uk/id/local-authority/30UE,Service Management & Support,1009,Customer & Digital,Vehicles and Plant Maintenance,30045,Direct Transport Costs,5016,Please supply poly brushes for Schmidt swingo+,05/09/2018,0131815,243.30,Revenue,Northern Municipal Spares Ltd,17752,,
Chorley Borough Council,http://statistics.data.gov.uk/id/local-authority/30UE,Service Management & Support,1009,Customer & Digital,Vehicles and Plant Maintenance,30045,Direct Transport Costs,5016,Please supply mixed metal and poly brushes for Schmidt swingo+,05/09/2018,0131815,347.25,Revenue,Northern Municipal Spares Ltd,17752,,
Chorley Borough Council,http://statistics.data.gov.uk/id/local-authority/30UE,Tourism,1039,Policy & Governance,Miscellaneous Expenses,40200,Miscellaneous Expenses,5034,Mini Bus Hire Res No.s R2106925 & R2106929.,05/09/2018,0131942,278.30,Revenue,Northgate Vehicle Hire (NW) Ltd,17360,,
Chorley Borough Council,http://statistics.data.gov.uk/id/local-authority/30UE,Democratic Represent and  Mgnt,1007,Business Development & Growth,Electricity,20013,Energy Costs,5006,TATTON,19/09/2018,0132380,34.55,Revenue,Npower Commercial Gas,16814,,
Chorley Borough Council,http://statistics.data.gov.uk/id/local-authority/30UE,Democratic Represent and  Mgnt,1007,Business Development & Growth,Electricity,20013,Energy Costs,5006,ASTLEY HALL,19/09/2018,0132380,240.08,Revenue,Npower Commercial Gas,16814,,
Chorley Borough Council,http://statistics.data.gov.uk/id/local-authority/30UE,Community Development,1097,Business Development & Growth,Electricity,20013,Energy Costs,5006,35-39 MARKET STREET,19/09/2018,0132380,127.18,Revenue,Npower Commercial Gas,16814,,
Chorley Borough Council,http://statistics.data.gov.uk/id/local-authority/30UE,Democratic Represent and  Mgnt,1007,Business Development & Growth,Electricity,20013,Energy Costs,5006,ASTLEY COACH,19/09/2018,0132380,"2,959.48",Revenue,Npower Commercial Gas,16814,,
Chorley Borough Council,http://statistics.data.gov.uk/id/local-authority/30UE,Democratic Represent and  Mgnt,1007,Business Development & Growth,Electricity,20013,Energy Costs,5006,ASTLEY PARK,19/09/2018,0132380,775.03,Revenue,Npower Commercial Gas,16814,,
Chorley Borough Council,http://statistics.data.gov.uk/id/local-authority/30UE,Economic Development,1096,Business Development & Growth,Electricity,20013,Energy Costs,5006,MARKET COMPACTOR,19/09/2018,0132380,33.73,Revenue,Npower Commercial Gas,16814,,
Chorley Borough Council,http://statistics.data.gov.uk/id/local-authority/30UE,Homelessness,1075,Business Development & Growth,Electricity,20013,Energy Costs,5006,COSTWOLD,19/09/2018,0132380,484.81,Revenue,Npower Commercial Gas,16814,,
Chorley Borough Council,http://statistics.data.gov.uk/id/local-authority/30UE,Parking Services,1066,Business Development & Growth,Electricity,20013,Energy Costs,5006,CAR PRK UNION ST,19/09/2018,0132380,350.58,Revenue,Npower Commercial Gas,16814,,
Chorley Borough Council,http://statistics.data.gov.uk/id/local-authority/30UE,Unapportionable Central OHeads,1009,Business Development & Growth,Electricity,20013,Energy Costs,5006,CIVIC,19/09/2018,0132381,"4,125.18",Revenue,Npower Commercial Gas,16814,,
Chorley Borough Council,http://statistics.data.gov.uk/id/local-authority/30UE,Unapportionable Central OHeads,1009,Business Development & Growth,Electricity,20013,Energy Costs,5006,BENGAL,19/09/2018,0132381,775.14,Revenue,Npower Commercial Gas,16814,,
Chorley Borough Council,http://statistics.data.gov.uk/id/local-authority/30UE,Unapportionable Central OHeads,1009,Business Development & Growth,Electricity,20013,Energy Costs,5006,TOWN HALL,19/09/2018,0132381,"1,900.84",Revenue,Npower Commercial Gas,16814,,
Chorley Borough Council,http://statistics.data.gov.uk/id/local-authority/30UE,Democratic Represent and  Mgnt,1007,Business Development & Growth,Electricity,20013,Energy Costs,5006,TURNLEY HOLME,19/09/2018,0132381,130.35,Revenue,Npower Commercial Gas,16814,,
Chorley Borough Council,http://statistics.data.gov.uk/id/local-authority/30UE,Parking Services,1066,Business Development & Growth,Electricity,20013,Energy Costs,5006,CAR PARK LIGHTING,19/09/2018,0132386,1.23,Revenue,Npower Commercial Gas,16814,,
Chorley Borough Council,http://statistics.data.gov.uk/id/local-authority/30UE,Parking Services,1066,Business Development & Growth,Electricity,20013,Energy Costs,5006,PAY & DISPLAY,19/09/2018,0132386,123.10,Revenue,Npower Commercial Gas,16814,,
Chorley Borough Council,http://statistics.data.gov.uk/id/local-authority/30UE,Central Support Services,1009,Business Development & Growth,Electricity,20013,Energy Costs,5006,CCTV,19/09/2018,0132386,304.54,Revenue,Npower Commercial Gas,16814,,
Chorley Borough Council,http://statistics.data.gov.uk/id/local-authority/30UE,Parking Services,1066,Business Development & Growth,External Contractors,50008,Private Contractors,5042,"Provision of off street car park enforcement, cash collection, cash counting facilities and third party bulk cash  collections ",05/09/2018,0132135,"4,691.88",Revenue,NSL Limited,67253,,
Chorley Borough Council,http://statistics.data.gov.uk/id/local-authority/30UE,Tourism,1039,Policy & Governance,Supplies-Grounds Maintenance,40025,"Equipment, Furniture & Materia",5023,Flower show demonstrations,05/09/2018,0131773,280.00,Revenue,Owen Jones,76956,,
Chorley Borough Council,http://statistics.data.gov.uk/id/local-authority/30UE,Service Management & Support,1009,Customer & Digital,Supplies-Grounds Maintenance,40025,"Equipment, Furniture & Materia",5023,"As per invoice number 19580; various parts, tools for the workshop",19/09/2018,0132505,304.15,Revenue,P D M Components,19204,,
Chorley Borough Council,http://statistics.data.gov.uk/id/local-authority/30UE,Service Management & Support,1009,Customer & Digital,Supplies-Grounds Maintenance,40025,"Equipment, Furniture & Materia",5023,As per invoice number 19590; various parts and tools for the workshop,19/09/2018,0132506,252.15,Revenue,P D M Components,19204,,
Chorley Borough Council,http://statistics.data.gov.uk/id/local-authority/30UE,Unapportionable Central OHeads,1009,Policy & Governance,Service Fees,40056,Services,5027,French Lessons - 5 one hour sessions,19/09/2018,0132440,450.00,Revenue,Pamela Brown,77580,,
Chorley Borough Council,http://statistics.data.gov.uk/id/local-authority/30UE,Parking Services,1066,Business Development & Growth,Printing,40043,"Printing, Stationery & General",5026,"Order already received as per shipping note 182388  Ref 119452 1 colour face,  TBA Chorley Stelio Adhesive 60mm x 69.85mm",26/09/2018,0132588,906.75,Revenue,Paperwork (UK) Limited,18296,,
Chorley Borough Council,http://statistics.data.gov.uk/id/local-authority/30UE,Service Management & Support,1009,Customer & Digital,Supplies-Grounds Maintenance,40025,"Equipment, Furniture & Materia",5023,ITI course for NAME REDACTED,12/09/2018,0131868,315.00,Revenue,Paul Cleaver Tree Consultancy,77489,,
Chorley Borough Council,http://statistics.data.gov.uk/id/local-authority/30UE,Business Support,1095,Business Development & Growth,Grants To Other Organisations,40127,Grants and Subscriptions,5031,Starting in Business Grant,19/09/2018,0132397,250.00,Revenue,NAME REDACTED,77481,,
Chorley Borough Council,http://statistics.data.gov.uk/id/local-authority/30UE,Unapportionable Central OHeads,1009,Policy & Governance,Service Fees,40056,Services,5027,Occupational Health Charges for August 2018,12/09/2018,0132262,438.50,Revenue,People Asset Management Limited,76487,,
Chorley Borough Council,http://statistics.data.gov.uk/id/local-authority/30UE,Capital,Capital,Business Development & Growth,Other Capital Related Fees,03024,Capital Expenditure,Capital,Primrose Gardens July 2018,19/09/2018,0131577,"1,624.84",Capital,Perfect Circle JV Ltd,76438,,
Chorley Borough Council,http://statistics.data.gov.uk/id/local-authority/30UE,Capital,Capital,Business Development & Growth,Consultants Fees,03025,Capital Expenditure,Capital,To provide Project Management for Market Walk and associated schemes (previous order no: PRD052595),12/09/2018,0132084,"55,858.84",Capital,Perfect Circle JV Ltd,76438,,
Chorley Borough Council,http://statistics.data.gov.uk/id/local-authority/30UE,Central Support Services,1009,Early Intervention,External Contractor,40198,Miscellaneous Expenses,5034,Pest Control services for 2018/19,12/09/2018,0132113,255.00,Revenue,Peter L Johnson,16727,,
Chorley Borough Council,http://statistics.data.gov.uk/id/local-authority/30UE,Central Support Services,1009,Early Intervention,External Contractor,40198,Miscellaneous Expenses,5034,Pest Control services for 2018/19,12/09/2018,0132271,340.00,Revenue,Peter L Johnson,16727,,
Chorley Borough Council,http://statistics.data.gov.uk/id/local-authority/30UE,Central Support Services,1009,Early Intervention,External Contractor,40198,Miscellaneous Expenses,5034,Pest Control services for 2018/19,26/09/2018,0132431,340.00,Revenue,Peter L Johnson,16727,,
Chorley Borough Council,http://statistics.data.gov.uk/id/local-authority/30UE,Central Support Services,1009,Early Intervention,Miscellaneous Expenses,40200,Miscellaneous Expenses,5034,PCC Funding bid 1 x CSE `Identifying Boys` delivered on Tuesday 9 October 2018,21/09/2018,0132550,822.45,Revenue,Phil Mitchell,77368,,
Chorley Borough Council,http://statistics.data.gov.uk/id/local-authority/30UE,Service Management & Support,1009,Customer & Digital,Grounds Maintenance Contractor,20043,Grounds Maintenance Costs,5013,Rotovate areas ready for wildflower seeding,05/09/2018,0132046,"1,900.00",Revenue,plano ltd,77059,,
Chorley Borough Council,http://statistics.data.gov.uk/id/local-authority/30UE,Central Support Services,1009,Early Intervention,Other Contributions,40145,Grants and Subscriptions,5031,2018 - 2019 funding for PCSO`s in Chorley area,19/09/2018,0132514,"27,500.00",Revenue,Police & Crime Commissioner,17548,,
Chorley Borough Council,http://statistics.data.gov.uk/id/local-authority/30UE,Corporate Management,1008,Chief Executive,Other Contributions,40145,Grants and Subscriptions,5031,CBC LRF Secretary + Refreshment Contribution 2018/19 LRF Secretary - 837.40 Refreshments - 70 Total - 907.40,21/09/2018,0132579,837.40,Revenue,Police & Crime Commissioner,17548,,
Chorley Borough Council,http://statistics.data.gov.uk/id/local-authority/30UE,Unapportionable Central OHeads,1009,Policy & Governance,Miscellaneous Expenses,40200,Miscellaneous Expenses,5034,Police Costs GP,28/09/2018,0132686,"7,556.01",Revenue,Police & Crime Commissioner,17548,,
Chorley Borough Council,http://statistics.data.gov.uk/id/local-authority/30UE,Unapportionable Central OHeads,1009,Business Development & Growth,Publicity - Advertising,40157,Miscellaneous Expenses,5034,As per quote reference REF11172/1 Strip previous print,05/09/2018,0132055,20.00,Revenue,Poppy Signs Ltd,21898,,
Chorley Borough Council,http://statistics.data.gov.uk/id/local-authority/30UE,Unapportionable Central OHeads,1009,Business Development & Growth,Publicity - Advertising,40157,Miscellaneous Expenses,5034,"Large full height sticker, size as previous photo pictures Includes print & installation",05/09/2018,0132055,245.00,Revenue,Poppy Signs Ltd,21898,,
Chorley Borough Council,http://statistics.data.gov.uk/id/local-authority/30UE,Unapportionable Central OHeads,1009,Policy & Governance,Exhibitions & Special Events,40158,Miscellaneous Expenses,5034,"REF11188/2 2 Unit(s) CL banner 3m x 1m Regular PVC Banner, hemmed and eyelets (3000 x 1000)  2 1 Unit(s) Batch of 30 x A3",14/09/2018,0132085,298.38,Revenue,Poppy Signs Ltd,21898,,
Chorley Borough Council,http://statistics.data.gov.uk/id/local-authority/30UE,Economic Development,1096,Business Development & Growth,Miscellaneous Expenses,40200,Miscellaneous Expenses,5034,reference: REF11253/4 WINDOW SECTION 1 To supply full colour digitally printed Budget Clear vinyl with matching Budget White,19/09/2018,0132520,245.07,Revenue,Poppy Signs Ltd,21898,,
Chorley Borough Council,http://statistics.data.gov.uk/id/local-authority/30UE,Economic Development,1096,Business Development & Growth,Miscellaneous Expenses,40200,Miscellaneous Expenses,5034,WINDOW SECTION 2 To supply full colour digitally printed Budget Clear vinyl with matching Budget White laminate for application,19/09/2018,0132520,237.45,Revenue,Poppy Signs Ltd,21898,,
Chorley Borough Council,http://statistics.data.gov.uk/id/local-authority/30UE,Economic Development,1096,Business Development & Growth,Miscellaneous Expenses,40200,Miscellaneous Expenses,5034,WINDOW SECTION 3 As current - No Works Required 0.00 0.00 WINDOW SECTION 4 To supply full colour digitally printed,19/09/2018,0132520,221.84,Revenue,Poppy Signs Ltd,21898,,
Chorley Borough Council,http://statistics.data.gov.uk/id/local-authority/30UE,Economic Development,1096,Business Development & Growth,Miscellaneous Expenses,40200,Miscellaneous Expenses,5034,WINDOW SECTION 5 To supply full colour digitally printed Budget Clear vinyl with matching Budget White laminate for application,19/09/2018,0132520,217.96,Revenue,Poppy Signs Ltd,21898,,
Chorley Borough Council,http://statistics.data.gov.uk/id/local-authority/30UE,Economic Development,1096,Business Development & Growth,Miscellaneous Expenses,40200,Miscellaneous Expenses,5034,GLAZING ABOVE DOORS,19/09/2018,0132520,152.50,Revenue,Poppy Signs Ltd,21898,,
Chorley Borough Council,http://statistics.data.gov.uk/id/local-authority/30UE,Economic Development,1096,Business Development & Growth,Miscellaneous Expenses,40200,Miscellaneous Expenses,5034,To supply full colour digitally printed Budget Clear vinyl with matching Budget White laminate for application to the external area ,19/09/2018,0132520,196.98,Revenue,Poppy Signs Ltd,21898,,
Chorley Borough Council,http://statistics.data.gov.uk/id/local-authority/30UE,Parking Services,1066,Business Development & Growth,Miscellaneous Expenses,40200,Miscellaneous Expenses,5034,As per quote reference REF11294/2 Please supply: Left Facing x 2 Right facing x 1 910mm long x 210mm high chevron/flag sign,26/09/2018,0132630,336.04,Revenue,Poppy Signs Ltd,21898,,
Chorley Borough Council,http://statistics.data.gov.uk/id/local-authority/30UE,Unapportionable Central OHeads,1009,Policy & Governance,Refreshments,40036,Catering,5024,"Supply, Sanitation, provision of cups and water for all Pressure Coolers for Council Sites for the month of September 2018",26/09/2018,0132265,280.80,Revenue,Pressure Coolers Ltd T/A Maestro International Ltd,19767,,
Chorley Borough Council,http://statistics.data.gov.uk/id/local-authority/30UE,Elections,1012,Policy & Governance,Printing,40043,"Printing, Stationery & General",5026,HEF first reminders 18383,12/09/2018,0132331,"1,427.52",Revenue,Print Image Network,21171,,
Chorley Borough Council,http://statistics.data.gov.uk/id/local-authority/30UE,Elections,1012,Policy & Governance,Printing,40043,"Printing, Stationery & General",5026,initial itrs and bre envelopes,12/09/2018,0132332,"1,989.36",Revenue,Print Image Network,21171,,
Chorley Borough Council,http://statistics.data.gov.uk/id/local-authority/30UE,Other Short Term Creditors,,Policy & Governance,General Balances,00100,Balance Sheet,Balance,salary deductions L004/17332,19/09/2018,0132454,"2,373.50",Revenue,PRUDENTIAL,18178,,
Chorley Borough Council,http://statistics.data.gov.uk/id/local-authority/30UE,Democratic Represent and  Mgnt,1007,Business Development & Growth,Asset Maintenance Fund,20012,Repairs Maintenance & Alts,5005,Flagging works at Astley Park,12/09/2018,0132044,"3,500.00",Revenue,R W Mayor Ltd,77386,,
Chorley Borough Council,http://statistics.data.gov.uk/id/local-authority/30UE,Economic Development,1096,Business Development & Growth,Miscellaneous Expenses,40200,Miscellaneous Expenses,5034,"Control of rats around the Covered Market, inc 10x bait boxes (929) plus associated visits x4 582 and pest disinfection 136.28",12/09/2018,0132197,"1,647.28",Revenue,Rentokil,76639,,
Chorley Borough Council,http://statistics.data.gov.uk/id/local-authority/30UE,Corporate Management,1008,Customer & Digital,Consultants` Fees,40077,Services,5027,Consultancy Services for Chorley Waste Contract Procurement - Third moderation meeting,05/09/2018,0132134,"1,300.00",Revenue,Ricardo Energy & Environment,76939,,
Chorley Borough Council,http://statistics.data.gov.uk/id/local-authority/30UE,Corporate Management,1008,Customer & Digital,Consultants` Fees,40077,Services,5027,Consultancy Services for Chorley Waste Contract Procurement - Expenses for third moderation meeting,05/09/2018,0132134,159.01,Revenue,Ricardo Energy & Environment,76939,,
Chorley Borough Council,http://statistics.data.gov.uk/id/local-authority/30UE,Corporate Management,1008,Customer & Digital,Consultants` Fees,40077,Services,5027,Consultancy Services for Chorley Waste Contract Procurement - Clarification support June 2018,05/09/2018,0132134,550.00,Revenue,Ricardo Energy & Environment,76939,,
Chorley Borough Council,http://statistics.data.gov.uk/id/local-authority/30UE,Corporate Management,1008,Customer & Digital,Consultants` Fees,40077,Services,5027,Consultancy Services for Chorley Waste Contract Procurement - clarification meeting with potential bidder July 2018,05/09/2018,0132134,550.00,Revenue,Ricardo Energy & Environment,76939,,
Chorley Borough Council,http://statistics.data.gov.uk/id/local-authority/30UE,Corporate Management,1008,Customer & Digital,Consultants` Fees,40077,Services,5027,Consultancy Services for Chorley Waste Contract Procurement - expenses for clarification meeting with potential bidder July 2018,05/09/2018,0132134,162.07,Revenue,Ricardo Energy & Environment,76939,,
Chorley Borough Council,http://statistics.data.gov.uk/id/local-authority/30UE,Corporate Management,1008,Customer & Digital,Consultants` Fees,40077,Services,5027,Consultancy services (phase 2) to support the provision of a waste collection contract,07/09/2018,0132195,"2,668.25",Revenue,Ricardo Energy & Environment,76939,,
Chorley Borough Council,http://statistics.data.gov.uk/id/local-authority/30UE,Capital,Capital,Business Development & Growth,Surveyors Fees,03021,Capital Expenditure,Capital,Provision of Quantity Surveying Services in accordance with tender dated 30.9.2016.,19/09/2018,0132430,"2,500.00",Capital,Rider Levett Bucknall,67527,,
Chorley Borough Council,http://statistics.data.gov.uk/id/local-authority/30UE,Capital,Capital,Business Development & Growth,Surveyors Fees,03021,Capital Expenditure,Capital,Provision of Quantity Surveying Services in accordance with tender dated 30.9.2016.,26/09/2018,0132648,"2,500.00",Capital,Rider Levett Bucknall,67527,,
Chorley Borough Council,http://statistics.data.gov.uk/id/local-authority/30UE,Service Management & Support,1009,Customer & Digital,Supplies-Grounds Maintenance,40025,"Equipment, Furniture & Materia",5023,50 x 10lts Impact line marking paint @ 26 ea,05/09/2018,0131887,"1,300.00",Revenue,Rigby Taylor Ltd,16299,,
Chorley Borough Council,http://statistics.data.gov.uk/id/local-authority/30UE,Service Management & Support,1009,Customer & Digital,Supplies-Grounds Maintenance,40025,"Equipment, Furniture & Materia",5023,15Kg of R14 grass seed,05/09/2018,0131887,68.00,Revenue,Rigby Taylor Ltd,16299,,
Chorley Borough Council,http://statistics.data.gov.uk/id/local-authority/30UE,Tourism,1039,Policy & Governance,Professional Fees,40063,Services,5027,flower show priz,19/09/2018,0132479,400.00,Revenue,NAME REDACTED,76233,,
Chorley Borough Council,http://statistics.data.gov.uk/id/local-authority/30UE,Elections,1012,Policy & Governance,Postages,40082,Communication and Computing,5028,Business reply service for RRHA-KZCB-CAXA April - October 2018,12/09/2018,0132336,"1,042.43",Revenue,Royal Mail Group Plc,17522,,
Chorley Borough Council,http://statistics.data.gov.uk/id/local-authority/30UE,Unapportionable Central OHeads,1009,Customer & Digital,Postages,40082,Communication and Computing,5028,delivery other than addressed,26/09/2018,0132515,"2,750.00",Revenue,Royal Mail Group Plc,17522,,
Chorley Borough Council,http://statistics.data.gov.uk/id/local-authority/30UE,Capital,Capital,Business Development & Growth,Other Capital Related Fees,03024,Capital Expenditure,Capital,For provision of Building Services Engineering (M&E) for Digital Office Park  in accordance with your tender dated 24th Nov 16.,26/09/2018,0132649,"3,000.00",Capital,RPS Consulting Services Ltd,20128,,
Chorley Borough Council,http://statistics.data.gov.uk/id/local-authority/30UE,Central Support Services,1009,Early Intervention,Miscellaneous Expenses,40200,Miscellaneous Expenses,5034,Harpers Lane opening event - bouncy slide  Jungle 13ft platform event Slide (suitable for ages 3-15) with member of staff 4 hours,26/09/2018,0131604,280.00,Revenue,S J Enterprises (Chorley) Limited,70096,,
Chorley Borough Council,http://statistics.data.gov.uk/id/local-authority/30UE,Service Management & Support,1009,Customer & Digital,Diesel/Derv,30007,Direct Transport Costs,5016,Supply and deliver 7100L road diesel and 2400L gas oil as per your quotation on the chest  Road diesel @ 1.06 = 7526 Gas,26/09/2018,0132582,"7,526.00",Revenue,Samuel Cooke & Co Ltd,17173,,
Chorley Borough Council,http://statistics.data.gov.uk/id/local-authority/30UE,Service Management & Support,1009,Customer & Digital,Diesel/Derv,30007,Direct Transport Costs,5016,surcharge,26/09/2018,0132582,142.00,Revenue,Samuel Cooke & Co Ltd,17173,,
Chorley Borough Council,http://statistics.data.gov.uk/id/local-authority/30UE,Service Management & Support,1009,Customer & Digital,Diesel/Derv,30007,Direct Transport Costs,5016,Supply and deliver 7100L road diesel and 2400L gas oil as per your quotation on the chest  Road diesel @ 1.06 = 7526 Gas oil,26/09/2018,0132583,"1,306.89",Revenue,Samuel Cooke & Co Ltd,17173,,
Chorley Borough Council,http://statistics.data.gov.uk/id/local-authority/30UE,Service Management & Support,1009,Customer & Digital,Diesel/Derv,30007,Direct Transport Costs,5016,surcharge,26/09/2018,0132583,44.04,Revenue,Samuel Cooke & Co Ltd,17173,,
Chorley Borough Council,http://statistics.data.gov.uk/id/local-authority/30UE,Democratic Represent and  Mgnt,1007,Policy & Governance,Exhibitions,40176,Miscellaneous Expenses,5034,BWPA exhibition 2018 - Final Payment,26/09/2018,0132664,655.00,Revenue,Sanders Exhibition Service Ltd,76737,,
Chorley Borough Council,http://statistics.data.gov.uk/id/local-authority/30UE,Democratic Represent and  Mgnt,1007,Business Development & Growth,Electricity,20013,Energy Costs,5006,17/5/18 to 22/8/18,05/09/2018,0132081,708.14,Revenue,Scottish Power,18998,,
Chorley Borough Council,http://statistics.data.gov.uk/id/local-authority/30UE,Homelessness,1075,Early Intervention,External Contractor,40198,Miscellaneous Expenses,5034,"For concierge service at Cotswold Supported Housing, Cotswold Road, Chorley, Lancashire, PR7 3HW. For any services provided",05/09/2018,0130178,"2,562.65",Revenue,Sector Security Services,19269,,
Chorley Borough Council,http://statistics.data.gov.uk/id/local-authority/30UE,Homelessness,1075,Early Intervention,External Contractor,40198,Miscellaneous Expenses,5034,"For concierge service at Cotswold Supported Housing, Cotswold Road, Chorley, Lancashire, PR7 3HW. For any services provided",05/09/2018,0131973,"2,407.50",Revenue,Sector Security Services,19269,,
Chorley Borough Council,http://statistics.data.gov.uk/id/local-authority/30UE,Homelessness,1075,Early Intervention,External Contractor,40198,Miscellaneous Expenses,5034,"For concierge service at Cotswold Supported Housing, Cotswold Road, Chorley, Lancashire, PR7 3HW. For any services provided",12/09/2018,0132173,"5,267.08",Revenue,Sector Security Services,19269,,
Chorley Borough Council,http://statistics.data.gov.uk/id/local-authority/30UE,Tourism,1039,Policy & Governance,Professional Fees,40063,Services,5027,Boom bike for Chorley Flower Show,05/09/2018,0132066,950.00,Revenue,Sound Intervention Ltd,65504,,
Chorley Borough Council,http://statistics.data.gov.uk/id/local-authority/30UE,Service Management & Support,1009,Customer & Digital,Supplies-Grounds Maintenance,40025,"Equipment, Furniture & Materia",5023,Pack of 5 Curved Saw Head,26/09/2018,0132586,44.75,Revenue,Spalding (UK) Limited,20264,,
Chorley Borough Council,http://statistics.data.gov.uk/id/local-authority/30UE,Service Management & Support,1009,Customer & Digital,Supplies - Workshop,40246,"Equipment, Furniture & Materia",5023,"2 x Filter pack - to fit Ransomes highway 2130, Parkway 2250 - product no. 30778",26/09/2018,0132586,110.00,Revenue,Spalding (UK) Limited,20264,,
Chorley Borough Council,http://statistics.data.gov.uk/id/local-authority/30UE,Service Management & Support,1009,Customer & Digital,Supplies - Workshop,40246,"Equipment, Furniture & Materia",5023,2 x Filter pack (option 1) - to fit John Deere 1545 - product no. 30776,26/09/2018,0132586,72.00,Revenue,Spalding (UK) Limited,20264,,
Chorley Borough Council,http://statistics.data.gov.uk/id/local-authority/30UE,Service Management & Support,1009,Customer & Digital,Supplies - Workshop,40246,"Equipment, Furniture & Materia",5023,Absorbent particles pack of 4 x 30 litre bags,26/09/2018,0132586,26.50,Revenue,Spalding (UK) Limited,20264,,
Chorley Borough Council,http://statistics.data.gov.uk/id/local-authority/30UE,Service Management & Support,1009,Customer & Digital,Supplies-Grounds Maintenance,40025,"Equipment, Furniture & Materia",5023,HV473- HUSQVARNA MINERAL CHAIN OIL 20 LITRE,26/09/2018,0132586,46.00,Revenue,Spalding (UK) Limited,20264,,
Chorley Borough Council,http://statistics.data.gov.uk/id/local-authority/30UE,Service Management & Support,1009,Customer & Digital,Vehicles and Plant Maintenance,30045,Direct Transport Costs,5016,carry out repairs to AE14AXW as per invoice 1421,05/09/2018,0131860,343.00,Revenue,Stoat Sweepers and Gritters,22421,,
Chorley Borough Council,http://statistics.data.gov.uk/id/local-authority/30UE,Capital,Capital,Customer & Digital,Equipment,03014,Capital Expenditure,Capital,"1100L Steely Bins with Galvanised Bodies & Brown Trade Lids, no graphics.   QUANTITY : 6",05/09/2018,0132122,"1,257.66",Capital,Straight Plc,17633,,
Chorley Borough Council,http://statistics.data.gov.uk/id/local-authority/30UE,Capital,Capital,Customer & Digital,Equipment,03014,Capital Expenditure,Capital,"1100L Steely Bins with Galvanised Bodies & Blue Trade Lids, no graphics Quantity : 4",05/09/2018,0132122,838.44,Capital,Straight Plc,17633,,
Chorley Borough Council,http://statistics.data.gov.uk/id/local-authority/30UE,Capital,Capital,Customer & Digital,Equipment,03014,Capital Expenditure,Capital,1100 litre Steely Bins with Galvanised Bodies & Black Trade Lids to Chorley spec  Quantity : 16,05/09/2018,0132122,"3,337.12",Capital,Straight Plc,17633,,
Chorley Borough Council,http://statistics.data.gov.uk/id/local-authority/30UE,Central Support Services,1009,Early Intervention,Community Develop Initiatives,40185,Miscellaneous Expenses,5034,Mental Health Youth First Aid Course - Lite.,19/09/2018,0132323,"1,595.00",Revenue,Street Games UK LTD,22465,,
Chorley Borough Council,http://statistics.data.gov.uk/id/local-authority/30UE,Capital,Capital,Early Intervention,Grants,03002,Capital Expenditure,Capital,CAG,05/09/2018,0132097,"4,044.00",Capital,Stringfellow Bldg Cntrctrs Ltd,17893,,
Chorley Borough Council,http://statistics.data.gov.uk/id/local-authority/30UE,Capital,Capital,Early Intervention,Grants,03002,Capital Expenditure,Capital,Grant,05/09/2018,0132098,"3,632.00",Capital,Stringfellow Bldg Cntrctrs Ltd,17893,,
Chorley Borough Council,http://statistics.data.gov.uk/id/local-authority/30UE,Capital,Capital,Early Intervention,Grants,03002,Capital Expenditure,Capital,ADDRESS REDACTED,14/09/2018,0132387,"4,202.50",Capital,Stringfellow Bldg Cntrctrs Ltd,17893,,
Chorley Borough Council,http://statistics.data.gov.uk/id/local-authority/30UE,Capital,Capital,Early Intervention,Grants,03002,Capital Expenditure,Capital,DFG ADDRESS REDACTED,19/09/2018,0132390,"12,900.00",Capital,Stringfellow Bldg Cntrctrs Ltd,17893,,
Chorley Borough Council,http://statistics.data.gov.uk/id/local-authority/30UE,Capital,Capital,Early Intervention,Grants,03002,Capital Expenditure,Capital,CAG ADDRESS REDACTED,14/09/2018,0132391,"3,183.50",Capital,Stringfellow Bldg Cntrctrs Ltd,17893,,
Chorley Borough Council,http://statistics.data.gov.uk/id/local-authority/30UE,Corporate Management,1008,Policy & Governance,Exhibitions & Special Events,40158,Miscellaneous Expenses,5034,Crazy golf and giant games hire for the summer holidays with two members of staff,14/09/2018,0132361,840.00,Revenue,Sunshine Events,22127,,
Chorley Borough Council,http://statistics.data.gov.uk/id/local-authority/30UE,Corporate Management,1008,Policy & Governance,Exhibitions & Special Events,40158,Miscellaneous Expenses,5034,Crazy golf and giant games hire for the summer holidays with two members of staff,14/09/2018,0132389,840.00,Revenue,Sunshine Events,22127,,
Chorley Borough Council,http://statistics.data.gov.uk/id/local-authority/30UE,Central Support Services,1009,Early Intervention,Tools & Equipment - Maintenance,40005,"Equipment, Furniture & Materia",5023,Maintenance of CCTV faults,05/09/2018,0130087,630.00,Revenue,Technology Solutions,72376,,
Chorley Borough Council,http://statistics.data.gov.uk/id/local-authority/30UE,Central Support Services,1009,Customer & Digital,Tools & Equipment - Maintenance,40005,"Equipment, Furniture & Materia",5023,Maintenance of CCTV faults,07/09/2018,0131570,450.00,Revenue,Technology Solutions,72376,,
Chorley Borough Council,http://statistics.data.gov.uk/id/local-authority/30UE,Central Support Services,1009,Early Intervention,Tools & Equipment - Maintenance,40005,"Equipment, Furniture & Materia",5023,Maintenance of CCTV faults,12/09/2018,0132299,630.00,Revenue,Technology Solutions,72376,,
Chorley Borough Council,http://statistics.data.gov.uk/id/local-authority/30UE,Central Support Services,1009,Business Development & Growth,Consultants` Fees,40077,Services,5027,Ecological survey works at Alker Lane,05/09/2018,0131294,"8,450.00",Revenue,The Environment Partnership (TEP) Ltd,77359,,
Chorley Borough Council,http://statistics.data.gov.uk/id/local-authority/30UE,Unapportionable Central OHeads,1009,Business Development & Growth,General Repairs - Reactive,20004,Repairs Maintenance & Alts,5005,"jamme roller shutter",19/09/2018,0132383,520.00,Revenue,The Guardian Shutter Co LTD,21769,,
Chorley Borough Council,http://statistics.data.gov.uk/id/local-authority/30UE,Tourism,1039,Policy & Governance,Professional Fees,40063,Services,5027,flower show prize money,21/09/2018,0132536,300.00,Revenue,NAME REDACTED,76961,,
Chorley Borough Council,http://statistics.data.gov.uk/id/local-authority/30UE,Tourism,1039,Policy & Governance,Professional Fees,40063,Services,5027,flower show priz,19/09/2018,0132476,860.38,Revenue,NAME REDACTED,71521,,
Chorley Borough Council,http://statistics.data.gov.uk/id/local-authority/30UE,Central Support Services,1009,Customer & Digital,Computer Equipment-Purchase,40098,Communication and Computing,5028,Town Hall Install 10 New and Move 14 Existing Data Points. As per Survey Union Street Install 20 New Data Points includes 2 ,26/09/2018,0132058,"3,517.04",Revenue,The Networking People (NorthWest) Ltd T/a TNP Ltd,73446,,
Chorley Borough Council,http://statistics.data.gov.uk/id/local-authority/30UE,Central Support Services,1009,Customer & Digital,Computer - Support Services,40111,Communication and Computing,5028,1 day workshop to determine the optimum approach for network procurement at the Digital Hub,05/09/2018,0132123,600.00,Revenue,The Networking People (NorthWest) Ltd T/a TNP Ltd,73446,,
Chorley Borough Council,http://statistics.data.gov.uk/id/local-authority/30UE,Central Support Services,1009,Customer & Digital,Computer Equipment-Purchase,40098,Communication and Computing,5028,2 x Extra Data points Union St Plant Room 2 x Extra Access Points Connected to Existing Data Infrastructure Town Hall 1 Extra,26/09/2018,0132559,547.73,Revenue,The Networking People (NorthWest) Ltd T/a TNP Ltd,73446,,
Chorley Borough Council,http://statistics.data.gov.uk/id/local-authority/30UE,Tourism,1039,Policy & Governance,Professional Fees,40063,Services,5027,flower show priz,19/09/2018,0132469,521.00,Revenue,NAME REDACTED,76958,,
Chorley Borough Council,http://statistics.data.gov.uk/id/local-authority/30UE,Capital,Capital,Business Development & Growth,Other Capital Related Fees,03024,Capital Expenditure,Capital,Felling of 1 large Poplar tree,26/09/2018,0132468,"2,400.00",Capital,Treescape North West Ltd,17688,,
Chorley Borough Council,http://statistics.data.gov.uk/id/local-authority/30UE,Service Management & Support,1009,Policy & Governance,Vehicles and Plant Operating Lease,30029,Contrct Hire & Operating Lease,5018,Lease of AE14 AXX 26/08/18 - 25/08/19,19/09/2018,0132384,"13,013.09",Revenue,Triple Point Lease Partners,71646,,
Chorley Borough Council,http://statistics.data.gov.uk/id/local-authority/30UE,Service Management & Support,1009,Policy & Governance,Vehicles and Plant Operating Lease,30029,Contrct Hire & Operating Lease,5018,Lease of AE14 AXW,19/09/2018,0132384,"13,013.10",Revenue,Triple Point Lease Partners,71646,,
Chorley Borough Council,http://statistics.data.gov.uk/id/local-authority/30UE,Unapportionable Central OHeads,1009,Customer & Digital,Service Fees,40056,Services,5027,2018-19 daily hybrid mail & annual billing,26/09/2018,0132211,"1,083.02",Revenue,UKMAIL Ltd (Mail),57758,,
Chorley Borough Council,http://statistics.data.gov.uk/id/local-authority/30UE,Unapportionable Central OHeads,1009,Customer & Digital,Service Fees,40056,Services,5027,2018-19 daily hybrid mail & annual billing,26/09/2018,0132217,"1,074.29",Revenue,UKMAIL Ltd (Mail),57758,,
Chorley Borough Council,http://statistics.data.gov.uk/id/local-authority/30UE,Homelessness,1075,Early Intervention,Miscellaneous Expenses,40200,Miscellaneous Expenses,5034,Programme 1,12/09/2018,0132289,"1,300.00",Revenue,Unify Credit Union Ltd,55509,,
Chorley Borough Council,http://statistics.data.gov.uk/id/local-authority/30UE,Control Accounts,Control,Policy & Governance,General Balances,00100,Balance Sheet,Balance,Monthly Deductions from Payroll,14/09/2018,0132409,"1,997.16",Revenue,Unify Credit Union Ltd,55509,,
Chorley Borough Council,http://statistics.data.gov.uk/id/local-authority/30UE,Capital,Capital,Early Intervention,Grants,03002,Capital Expenditure,Capital,ADDRESS REDACTED,26/09/2018,0132590,925.00,Capital,UPS Building and Maintenance Ltd,76235,,
Chorley Borough Council,http://statistics.data.gov.uk/id/local-authority/30UE,Central Support Services,1009,Business Development & Growth,Professional Fees,40063,Services,5027,sub-consultant through HIVE for Alker Lane works - utilities,19/09/2018,0132385,"3,020.00",Revenue,Utility Connections Management Ltd,77415,,
Chorley Borough Council,http://statistics.data.gov.uk/id/local-authority/30UE,Service Management & Support,1009,Customer & Digital,Vehicles and Plant Maintenance,30045,Direct Transport Costs,5016,stator for YJ16 EBN,05/09/2018,0131863,248.95,Revenue,Vale Engineering Ltd,66000,,
Chorley Borough Council,http://statistics.data.gov.uk/id/local-authority/30UE,Service Management & Support,1009,Customer & Digital,Vehicles and Plant Maintenance,30045,Direct Transport Costs,5016,GASKET FOR YJ16 EBN,05/09/2018,0131863,8.94,Revenue,Vale Engineering Ltd,66000,,
Chorley Borough Council,http://statistics.data.gov.uk/id/local-authority/30UE,Service Management & Support,1009,Customer & Digital,Vehicles and Plant Maintenance,30045,Direct Transport Costs,5016,DELIVERY TO; FAO NAME REDACTED CHORLEY COUNCIL DEPOT BENGAL ST PR7 1SA,05/09/2018,0131863,7.50,Revenue,Vale Engineering Ltd,66000,,
Chorley Borough Council,http://statistics.data.gov.uk/id/local-authority/30UE,Corporate Management,1008,Customer & Digital,Unitary Payment(S),50009,Private Contractors,5042,Provision of waste and recycling collection service and ancillary services for 2018/19.,05/09/2018,0132127,"283,978.53",Revenue,Veolia ES (UK) Ltd,20748,,
Chorley Borough Council,http://statistics.data.gov.uk/id/local-authority/30UE,Corporate Management,1008,Customer & Digital,"Hackney Badges, Plates Etc.",40023,"Equipment, Furniture & Materia",5023,Chorley PHV Size 2 x 1E Style 3_23_2  x3 Packs of 50,19/09/2018,0132416,70.50,Revenue,VIP-SYSTEM LIMITED,69902,,
Chorley Borough Council,http://statistics.data.gov.uk/id/local-authority/30UE,Corporate Management,1008,Customer & Digital,"Hackney Badges, Plates Etc.",40023,"Equipment, Furniture & Materia",5023,Chorley PHV Size 4F unique V5 x3 packs of 50,19/09/2018,0132416,361.29,Revenue,VIP-SYSTEM LIMITED,69902,,
Chorley Borough Council,http://statistics.data.gov.uk/id/local-authority/30UE,Central Support Services,1009,Customer & Digital,Telephones - Rentals,40083,Communication and Computing,5028,rent,05/09/2018,0132129,"2,640.00",Revenue,Virgin Media Payments Ltd,17632,,
Chorley Borough Council,http://statistics.data.gov.uk/id/local-authority/30UE,Central Support Services,1009,Customer & Digital,Telephones - Rentals,40083,Communication and Computing,5028,onlate payment & interest chargee off charge,05/09/2018,0132129,50.70,Revenue,Virgin Media Payments Ltd,17632,,
Chorley Borough Council,http://statistics.data.gov.uk/id/local-authority/30UE,Central Support Services,1009,Customer & Digital,Network Line Rental,40248,Communication and Computing,5028,Leased Line Rental,12/09/2018,0132294,"3,490.74",Revenue,Virgin Media Payments Ltd,17632,,
Chorley Borough Council,http://statistics.data.gov.uk/id/local-authority/30UE,Central Support Services,1009,Customer & Digital,Network Line Rental,40248,Communication and Computing,5028,Late payment charge,12/09/2018,0132294,40.00,Revenue,Virgin Media Payments Ltd,17632,,
Chorley Borough Council,http://statistics.data.gov.uk/id/local-authority/30UE,Tourism,1039,Policy & Governance,Professional Fees,40063,Services,5027,flower show priz,19/09/2018,0132467,400.00,Revenue,NAME REDACTED,76211,,
Chorley Borough Council,http://statistics.data.gov.uk/id/local-authority/30UE,Tourism,1039,Policy & Governance,Professional Fees,40063,Services,5027,flower show priz,19/09/2018,0132466,400.00,Revenue,NAME REDACTED,71501,,
Chorley Borough Council,http://statistics.data.gov.uk/id/local-authority/30UE,Homelessness,1075,Business Development & Growth,Water - Metered Supplies,20022,Water Services,5009,6/6/18 to 19/8/18,05/09/2018,0132080,497.65,Revenue,Water-plus,17926,,
Chorley Borough Council,http://statistics.data.gov.uk/id/local-authority/30UE,Central Support Services,1009,Business Development & Growth,Water - Metered Supplies,20022,Water Services,5009,1/6/18 to 22/8/18,05/09/2018,0132094,"1,280.83",Revenue,Water-plus,17926,,
Chorley Borough Council,http://statistics.data.gov.uk/id/local-authority/30UE,Unapportionable Central OHeads,1009,Business Development & Growth,Water - Metered Supplies,20022,Water Services,5009,28/5/18 to 27/8/18,05/09/2018,0132130,682.21,Revenue,Water-plus,17926,,
Chorley Borough Council,http://statistics.data.gov.uk/id/local-authority/30UE,Economic Development,1096,Business Development & Growth,Water - Metered Supplies,20022,Water Services,5009,16/3/17 to 11/9/18,19/09/2018,0132516,"1,047.54",Revenue,Water-plus,17926,,
Chorley Borough Council,http://statistics.data.gov.uk/id/local-authority/30UE,Democratic Represent and  Mgnt,1007,Business Development & Growth,Water - Metered Supplies,20022,Water Services,5009,19/6/18 to 17/09/18,26/09/2018,0132651,"1,493.84",Revenue,Water-plus,17926,,
Chorley Borough Council,http://statistics.data.gov.uk/id/local-authority/30UE,Democratic Represent and  Mgnt,1007,Business Development & Growth,Water - Metered Supplies,20022,Water Services,5009,19/06/2018 to 18/09/2018,26/09/2018,0132656,"1,649.60",Revenue,Water-plus,17926,,
Chorley Borough Council,http://statistics.data.gov.uk/id/local-authority/30UE,Service Management & Support,1009,Business Development & Growth,External Contractor,40198,Miscellaneous Expenses,5034,Please carry out the following works at Earlsway. Site clearance to enable survey Trial holes Investigation of existing drainage,19/09/2018,0132286,"2,950.00",Revenue,William Pye Ltd,60564,,
Chorley Borough Council,http://statistics.data.gov.uk/id/local-authority/30UE,Capital,Capital,Business Development & Growth,Main Contractor,03007,Capital Expenditure,Capital,credited,23/08/2018,0132068,"823,295.52",Capital,Willmott Dixon Constuction Ltd,77420,,
Chorley Borough Council,http://statistics.data.gov.uk/id/local-authority/30UE,Capital,Capital,Business Development & Growth,Main Contractor,03007,Capital Expenditure,Capital,Design and Build Strawberry Fields Digital Hub - Chorley,19/09/2018,0132525,"814,050.14",Capital,Willmott Dixon Constuction Ltd,77420,,
Chorley Borough Council,http://statistics.data.gov.uk/id/local-authority/30UE,Capital,Capital,Business Development & Growth,Main Contractor,03007,Capital Expenditure,Capital,Design and Build Strawberry Fields Digital Hub - Chorley,26/09/2018,0132663,"986,389.94",Capital,Willmott Dixon Constuction Ltd,77420,,
Chorley Borough Council,http://statistics.data.gov.uk/id/local-authority/30UE,Central Support Services,1009,Business Development & Growth,Miscellaneous Expenses,40200,Miscellaneous Expenses,5034,Childcare for a volunteer,14/09/2018,0132327,310.00,Revenue,NAME REDACTED,59236,,
Chorley Borough Council,http://statistics.data.gov.uk/id/local-authority/30UE,Central Support Services,1009,Business Development & Growth,Consultants` Fees,40077,Services,5027,sub-consultant through HIVE for Alker Lane works - ground conditions,05/09/2018,0131667,"1,595.00",Revenue,WSP UK Ltd,77416,,
Chorley Borough Council,http://statistics.data.gov.uk/id/local-authority/30UE,Recreation & Sport,1037,Early Intervention,Miscellaneous Expenses,40200,Miscellaneous Expenses,5034,"CF4001 MODEL 2000 COMFORT BACK P/P FOLDING CHAIR,450MM H.(MULTIPLES OF 8) - COLOUR REQUIRED-BLUE ",26/09/2018,0131949,823.95,Revenue,Yorkshire Purchasing Org,18098,,
Chorley Borough Council,http://statistics.data.gov.uk/id/local-authority/30UE,Recreation & Sport,1037,Early Intervention,Miscellaneous Expenses,40200,Miscellaneous Expenses,5034,"XH40030A MINI HANGING STORAGE TROLLEY,2 ROWS A26 STORES 68 X POLYPROPYLENE OR 36 STEEL CHAIRS",26/09/2018,0131949,489.90,Revenue,Yorkshire Purchasing Org,18098,,
Chorley Borough Council,http://statistics.data.gov.uk/id/local-authority/30UE,Recreation & Sport,1037,Early Intervention,Miscellaneous Expenses,40200,Miscellaneous Expenses,5034,"GRADUATE STACKING CHAIR, ARMS 820(H) X 430(SH) X 450(W) X 450MM(D) Colour-BLUE or Default 20 @ 54.60 ",26/09/2018,0132192,"1,092.00",Revenue,Yorkshire Purchasing Org,18098,,
